Workbook

Sheet Notes
A1: SRM12 Development Report Appendix E: Modelled PT Movement Comparison vs 2011 Census Travel to Work PT (Rail & Bus) Movements
A3: Notes
A4: Tab | B4: Description
A5: SRM12 Sector System | B5: This system was created using ArcGIS. A 24 sector system was developed and then the Intermediate Zones were assigned a Sector based on location.
A6: Census Travel to Work Data: WU03BSC_IZ2011_Scotland | B6: This was downloaded from http://www.scotlandscensus.gov.uk/ods-web/data-warehouse.html#additionaltab
B7: Sector IDs were indexed to the residence and workplace
A9: Note: All geographies are 2011 Intermediate Zones, excluding the following 'Area of Workplace' codes:
A10: EN | B10: Working in England
A11: NI | B11: Working in Northern Ireland
A12: Wales | B12: Working in Wales
A13: OD0000001 | B13: Working at home
A14: OD0000002 | B14: Working at an offshore location
A15: OD0000003 | B15: No fixed place of work
A16: OD0000004 | B16: Working outside the U.K
A18: Geography
A19: The look-up table, 'Output Area 2011 to Data Zones and Intermediate Zones 2011' can be found on the NRS website within the 'New look-ups' section: | B19: Intermediate Zone 2011 Lookup
A20: The boundary and centroid shapefiles for the 2011 Intermediate Zones are available here: | B20: Boundary and centroid shapefile downloads

Sheet Census PT Comparison
B1: Where do people who live in a particular (SESplan) Intermediate Zone commute to by PT (Rail & Bus)? | J1: SRM12 AM Peak Hour Matrix vs 2011 Census Travel to Work Movements (adjusted to size of SRM12 AM Peak Hour Matrix)
B2: Census 2011
B3: PT Trips from SRM Sector / to SRM Sector (2011 Census) | C3: Edinburgh Central | D3: Edinburgh Northeast | E3: Edinburgh East | F3: Edinburgh Southeast | G3: Edinburgh Southwest Inner | H3: Edinburgh West | I3: Edinburgh Northwest Inner | J3: Edinburgh Southwest Outer | K3: Edinburgh Northwest Outer | L3: East Lothian West | M3: East Lothian East | N3: East Lothian South | O3: West Lothian North | P3: West Lothian East | Q3: West Lothian West | R3: Midlothian North | S3: Midlothian East | T3: Midlothian South | U3: Scottish Borders West | V3: Scottish Borders East | W3: Scottish Borders South | X3: Fife West | Y3: Fife Central | Z3: Fife East | AA3: Edinburgh Central | AB3: Edinburgh Northeast | AC3: Edinburgh East | AD3: Edinburgh Southeast | AE3: Edinburgh Southwest Inner | AF3: Edinburgh West | AG3: Edinburgh Northwest Inner | AH3: Edinburgh Southwest Outer | AI3: Edinburgh Northwest Outer | AJ3: East Lothian West | AK3: East Lothian East | AL3: East Lothian South | AM3: West Lothian North | AN3: West Lothian East | AO3: West Lothian West | AP3: Midlothian North | AQ3: Midlothian East | AR3: Midlothian South | AS3: Scottish Borders West | AT3: Scottish Borders East | AU3: Scottish Borders South | AV3: Fife West | AW3: Fife Central | AX3: Fife East | AY3: Total Sesplan
B4: Edinburgh Central | C4: =AA4/$AY4 -> 0.1431904345 | D4: =AB4/$AY4 -> 0.1099445903 | E4: =AC4/$AY4 -> 0.06445027705 | F4: =AD4/$AY4 -> 0.06882473024 | G4: =AE4/$AY4 -> 0.1286089239 | H4: =AF4/$AY4 -> 0.2172645086 | I4: =AG4/$AY4 -> 0.07582385535 | J4: =AH4/$AY4 -> 0.08719743365 | K4: =AI4/$AY4 -> 0.006999125109 | L4: =AJ4/$AY4 -> 0.03149606299 | M4: =AK4/$AY4 -> 0.0005832604258 | N4: =AL4/$AY4 -> 0.0008748906387 | O4: =AM4/$AY4 -> 0.00204141149 | P4: =AN4/$AY4 -> 0.01603966171 | Q4: =AO4/$AY4 -> 0.002624671916 | R4: =AP4/$AY4 -> 0.01749781277 | S4: =AQ4/$AY4 -> 0 | T4: =AR4/$AY4 -> 0.008748906387 | U4: =AS4/$AY4 -> 0.001749781277 | V4: =AT4/$AY4 -> 0 | W4: =AU4/$AY4 -> 0.0005832604258 | X4: =AV4/$AY4 -> 0.007290755322 | Y4: =AW4/$AY4 -> 0.00408282298 | Z4: =AX4/$AY4 -> 0.00408282298 | AA4: 113.0660827 | AB4: 86.81448709 | AC4: 50.89125105 | AD4: 54.34540836 | AE4: 101.552225 | AF4: 171.5564798 | AG4: 59.87206006 | AH4: 68.85286907 | AI4: 5.526651698 | AJ4: 24.86993264 | AK4: 0.4605543082 | AL4: 0.6908314623 | AM4: 1.611940079 | AN4: 12.66524347 | AO4: 2.072494387 | AP4: 13.81662925 | AQ4: 0 | AR4: 6.908314623 | AS4: 1.381662925 | AT4: 0 | AU4: 0.4605543082 | AV4: 5.756928852 | AW4: 3.223880157 | AX4: 3.223880157 | AY4: =SUM(AA4:AX4) -> 789.6203614
B5: Edinburgh Northeast | C5: 0.4029578236 | D5: 0.1161828251 | E5: 0.1035238269 | F5: 0.05307041568 | G5: 0.07851013328 | H5: 0.1006025196 | I5: 0.07321526383 | J5: 0.01259813767 | K5: 0.002982167853 | L5: 0.02373562169 | M5: 0.001217211369 | N5: 0.001704095916 | O5: 0.0006086056844 | P5: 0.006146917412 | Q5: 0.001095490232 | R5: 0.01004199379 | S5: 6.086056844e-05 | T5: 0.003712494675 | U5: 0.0006694662528 | V5: 6.086056844e-05 | W5: 6.086056844e-05 | X5: 0.003347331264 | Y5: 0.002677865011 | Z5: 0.001217211369 | AA5: 1532.410727 | AB5: 441.8323634 | AC5: 393.691383 | AD5: 201.8218025 | AE5: 298.5666573 | AF5: 382.581926 | AG5: 278.4307665 | AH5: 47.90953338 | AI5: 11.34090404 | AJ5: 90.26433826 | AK5: 4.628940424 | AL5: 6.480516593 | AM5: 2.314470212 | AN5: 23.37614914 | AO5: 4.166046381 | AP5: 38.18875849 | AQ5: 0.2314470212 | AR5: 14.11826829 | AS5: 2.545917233 | AT5: 0.2314470212 | AU5: 0.2314470212 | AV5: 12.72958616 | AW5: 10.18366893 | AX5: 4.628940424 | AY5: 3802.906005
B6: Edinburgh East | C6: 0.3499511241 | D6: 0.1462086301 | E6: 0.1199553135 | F6: 0.09370199693 | G6: 0.06661080855 | H6: 0.0751291719 | I6: 0.05627705628 | J6: 0.01033375227 | K6: 0.003072196621 | L6: 0.03784387655 | M6: 0.0008378718056 | N6: 0.0006982265047 | O6: 0.0006982265047 | P6: 0.004608294931 | Q6: 0.0008378718056 | R6: 0.01899176093 | S6: 0.0001396453009 | T6: 0.007261555649 | U6: 0.0009775171065 | V6: 0 | W6: 0 | X6: 0.003351487222 | Y6: 0.001675743611 | Z6: 0.0008378718056 | AA6: 579.8159304 | AB6: 242.2455224 | AC6: 198.7477591 | AD6: 155.2499957 | AE6: 110.3640059 | AF6: 124.4776419 | AG6: 93.24254587 | AH6: 17.12146004 | AI6: 5.090163795 | AJ6: 62.70156311 | AK6: 1.388226489 | AL6: 1.156855408 | AM6: 1.156855408 | AN6: 7.635245692 | AO6: 1.388226489 | AP6: 31.46646709 | AQ6: 0.2313710816 | AR6: 12.03129624 | AS6: 1.619597571 | AT6: 0 | AU6: 0 | AV6: 5.552905958 | AW6: 2.776452979 | AX6: 1.388226489 | AY6: 1656.848315
B7: Edinburgh Southeast | C7: 0.362339515 | D7: 0.1133075199 | E7: 0.1471367434 | F7: 0.1126961484 | G7: 0.08661096393 | H7: 0.05685755044 | I7: 0.05685755044 | J7: 0.004890972081 | K7: 0.001630324027 | L7: 0.01100468718 | M7: 0 | N7: 0 | O7: 0.0002037905034 | P7: 0.003464438557 | Q7: 0 | R7: 0.03240269003 | S7: 0.0002037905034 | T7: 0.006725086611 | U7: 0.0008151620135 | V7: 0 | W7: 0 | X7: 0.002037905034 | Y7: 0.0004075810067 | Z7: 0.0004075810067 | AA7: 408.9139802 | AB7: 127.8718633 | AC7: 166.049434 | AD7: 127.1819072 | AE7: 97.74378041 | AF7: 64.16591702 | AG7: 64.16591702 | AH7: 5.519648776 | AI7: 1.839882925 | AJ7: 12.41920975 | AK7: 0 | AL7: 0 | AM7: 0.2299853657 | AN7: 3.909751217 | AO7: 0 | AP7: 36.56767314 | AQ7: 0.2299853657 | AR7: 7.589517067 | AS7: 0.9199414627 | AT7: 0 | AU7: 0 | AV7: 2.299853657 | AW7: 0.4599707314 | AX7: 0.4599707314 | AY7: 1128.538189
B8: Edinburgh Southwest Inner | C8: 0.3782755402 | D8: 0.1064685189 | E8: 0.07868475842 | F8: 0.05018307129 | G8: 0.1132888219 | H8: 0.1323138775 | I8: 0.05542393567 | J8: 0.04479862158 | K8: 0.002010194558 | L8: 0.009907387465 | M8: 0.0004307559767 | N8: 0.0002871706512 | O8: 0.0006461339651 | P8: 0.007107473616 | Q8: 0.0009333046163 | R8: 0.008686912198 | S8: 0.0001435853256 | T8: 0.005097279058 | U8: 0.0003589633139 | V8: 0 | W8: 7.179266279e-05 | X8: 0.002153779884 | Y8: 0.002297365209 | Z8: 0.0004307559767 | AA8: 1212.063582 | AB8: 341.1444852 | AC8: 252.1202669 | AD8: 160.7956812 | AE8: 362.9979755 | AF8: 423.9577116 | AG8: 177.5883632 | AH8: 143.5429257 | AI8: 6.441028716 | AJ8: 31.7450701 | AK8: 1.380220439 | AL8: 0.9201469595 | AM8: 2.070330659 | AN8: 22.77363725 | AO8: 2.990477618 | AP8: 27.83444552 | AQ8: 0.4600734797 | AR8: 16.33260853 | AS8: 1.150183699 | AT8: 0 | AU8: 0.2300367399 | AV8: 6.901102196 | AW8: 7.361175676 | AX8: 1.380220439 | AY8: 3204.18175
B9: Edinburgh West | C9: 0.4560525493 | D9: 0.1144823272 | E9: 0.06693775414 | F9: 0.02690021896 | G9: 0.07350641226 | H9: 0.1301219894 | I9: 0.0888332812 | J9: 0.01345010948 | K9: 0.004379105411 | L9: 0.006255864873 | M9: 0.0003127932437 | N9: 0 | O9: 0.0003127932437 | P9: 0.00938379731 | Q9: 0.000938379731 | R9: 0.004691898655 | S9: 0 | T9: 0.000938379731 | U9: 0 | V9: 0 | W9: 0 | X9: 0.001563966218 | Y9: 0.000938379731 | Z9: 0 | AA9: 330.8566808 | AB9: 83.05455772 | AC9: 48.56195452 | AD9: 19.51555181 | AE9: 53.32737996 | AF9: 94.40080878 | AG9: 64.44670599 | AH9: 9.757775907 | AI9: 3.176950295 | AJ9: 4.538500422 | AK9: 0.2269250211 | AL9: 0 | AM9: 0.2269250211 | AN9: 6.807750633 | AO9: 0.6807750633 | AP9: 3.403875317 | AQ9: 0 | AR9: 0.6807750633 | AS9: 0 | AT9: 0 | AU9: 0 | AV9: 1.134625106 | AW9: 0.6807750633 | AX9: 0 | AY9: 725.4792925
B10: Edinburgh Northwest Inner | C10: 0.4294693582 | D10: 0.144929288 | E10: 0.07542608485 | F10: 0.02985615859 | G10: 0.06140456908 | H10: 0.1064909948 | I10: 0.1092711229 | J10: 0.008461259519 | K10: 0.004835005439 | L10: 0.008703009791 | M10: 0.000120875136 | N10: 0.000120875136 | O10: 0.0006043756799 | P10: 0.006406382207 | Q10: 0.0004835005439 | R10: 0.005802006527 | S10: 0.000120875136 | T10: 0.00241750272 | U10: 0.0004835005439 | V10: 0 | W10: 0.000120875136 | X10: 0.001934002176 | Y10: 0.002054877312 | Z10: 0.0004835005439 | AA10: 813.9647398 | AB10: 274.6815995 | AC10: 142.9535597 | AD10: 56.58578405 | AE10: 116.3788595 | AF10: 201.8302662 | AG10: 207.0993878 | AH10: 16.03645702 | AI10: 9.163689724 | AJ10: 16.4946415 | AK10: 0.2290922431 | AL10: 0.2290922431 | AM10: 1.145461216 | AN10: 12.14188888 | AO10: 0.9163689724 | AP10: 10.99642767 | AQ10: 0.2290922431 | AR10: 4.581844862 | AS10: 0.9163689724 | AT10: 0 | AU10: 0.2290922431 | AV10: 3.66547589 | AW10: 3.894568133 | AX10: 0.9163689724 | AY10: 1895.280127
B11: Edinburgh Southwest Outer | C11: 0.5265917603 | D11: 0.1176029963 | E11: 0.06367041199 | F11: 0.01423220974 | G11: 0.1078651685 | H11: 0.06142322097 | I11: 0.04494382022 | J11: 0.04494382022 | K11: 0.0007490636704 | L11: 0.007490636704 | M11: 0 | N11: 0 | O11: 0.001498127341 | P11: 0.004494382022 | Q11: 0 | R11: 0.002247191011 | S11: 0 | T11: 0.0007490636704 | U11: 0 | V11: 0 | W11: 0 | X11: 0.0007490636704 | Y11: 0.0007490636704 | Z11: 0 | AA11: 158.1602513 | AB11: 35.32170619 | AC11: 19.12321672 | AD11: 4.274601385 | AE11: 32.39697892 | AF11: 18.44827966 | AG11: 13.49874122 | AH11: 13.49874122 | AI11: 0.2249790203 | AJ11: 2.249790203 | AK11: 0 | AL11: 0 | AM11: 0.4499580406 | AN11: 1.349874122 | AO11: 0 | AP11: 0.6749370609 | AQ11: 0 | AR11: 0.2249790203 | AS11: 0 | AT11: 0 | AU11: 0 | AV11: 0.2249790203 | AW11: 0.2249790203 | AX11: 0 | AY11: 300.3469921
B12: Edinburgh Northwest Outer | C12: 0.4708699122 | D12: 0.08300079808 | E12: 0.06943335994 | F12: 0.0263367917 | G12: 0.03431763767 | H12: 0.1436552275 | I12: 0.09577015164 | J12: 0.003192338388 | K12: 0.03591380686 | L12: 0.005586592179 | M12: 0 | N12: 0 | O12: 0.000798084597 | P12: 0.01037509976 | Q12: 0.001596169194 | R12: 0.000798084597 | S12: 0 | T12: 0 | U12: 0 | V12: 0 | W12: 0 | X12: 0.01197126895 | Y12: 0.006384676776 | Z12: 0 | AA12: 131.3426938 | AB12: 23.15193246 | AC12: 19.36748196 | AD12: 7.346286261 | AE12: 9.572433612 | AF12: 40.07065233 | AG12: 26.71376822 | AH12: 0.8904589407 | AI12: 10.01766308 | AJ12: 1.558303146 | AK12: 0 | AL12: 0 | AM12: 0.2226147352 | AN12: 2.893991557 | AO12: 0.4452294703 | AP12: 0.2226147352 | AQ12: 0 | AR12: 0 | AS12: 0 | AT12: 0 | AU12: 0 | AV12: 3.339221028 | AW12: 1.780917881 | AX12: 0 | AY12: 278.9362632
B13: East Lothian West | C13: 0.3853508622 | D13: 0.1125149394 | E13: 0.1517841899 | F13: 0.02458596551 | G13: 0.03653747652 | H13: 0.03278128735 | I13: 0.03039098515 | J13: 0.003756189175 | K13: 0.000853679358 | L13: 0.1632234933 | M13: 0.01280519037 | N13: 0.01980536111 | O13: 0.0003414717432 | P13: 0.001536622844 | Q13: 0.0001707358716 | R13: 0.01929315349 | S13: 0.0003414717432 | T13: 0.001878094588 | U13: 0 | V13: 0 | W13: 0 | X13: 0.001536622844 | Y13: 0.0003414717432 | Z13: 0.0001707358716 | AA13: 508.8730424 | AB13: 148.581008 | AC13: 200.4378089 | AD13: 32.46686669 | AE13: 48.24937133 | AF13: 43.28915558 | AG13: 40.13265465 | AH13: 4.960215744 | AI13: 1.12732176 | AJ13: 215.5439205 | AK13: 16.9098264 | AL13: 26.15386483 | AM13: 0.450928704 | AN13: 2.029179168 | AO13: 0.225464352 | AP13: 25.47747178 | AQ13: 0.450928704 | AR13: 2.480107872 | AS13: 0 | AT13: 0 | AU13: 0 | AV13: 2.029179168 | AW13: 0.450928704 | AX13: 0.225464352 | AY13: 1320.54471
B14: East Lothian East | C14: 0.4553950722 | D14: 0.1163976211 | E14: 0.08836023789 | F14: 0.01784197111 | G14: 0.02803738318 | H14: 0.04163126593 | I14: 0.03738317757 | J14: 0.005947323704 | K14: 0 | L14: 0.04502973662 | M14: 0.1045029737 | N14: 0.04163126593 | O14: 0.000849617672 | P14: 0.001699235344 | Q14: 0 | R14: 0.01019541206 | S14: 0 | T14: 0.001699235344 | U14: 0.000849617672 | V14: 0.000849617672 | W14: 0 | X14: 0.001699235344 | Y14: 0 | Z14: 0 | AA14: 120.0317261 | AB14: 30.67975088 | AC14: 23.28973789 | AD14: 4.702735536 | AE14: 7.390012985 | AF14: 10.97304958 | AG14: 9.853350646 | AH14: 1.567578512 | AI14: 0 | AJ14: 11.86880873 | AK14: 27.54459385 | AL14: 10.97304958 | AM14: 0.2239397874 | AN14: 0.4478795748 | AO14: 0 | AP14: 2.687277449 | AQ14: 0 | AR14: 0.4478795748 | AS14: 0.2239397874 | AT14: 0.2239397874 | AU14: 0 | AV14: 0.4478795748 | AW14: 0 | AX14: 0 | AY14: 263.5771298
B15: East Lothian South | C15: 0.4547206166 | D15: 0.1136801541 | E15: 0.105973025 | F15: 0.007707129094 | G15: 0.02697495183 | H15: 0.03468208092 | I15: 0.03082851638 | J15: 0.005780346821 | K15: 0 | L15: 0.105973025 | M15: 0.05394990366 | N15: 0.04624277457 | O15: 0 | P15: 0.005780346821 | Q15: 0 | R15: 0.001926782274 | S15: 0.001926782274 | T15: 0.001926782274 | U15: 0.001926782274 | V15: 0 | W15: 0 | X15: 0 | Y15: 0 | Z15: 0 | AA15: 53.2951969 | AB15: 13.32379923 | AC15: 12.4204908 | AD15: 0.903308422 | AE15: 3.161579477 | AF15: 4.064887899 | AG15: 3.613233688 | AH15: 0.6774813165 | AI15: 0 | AJ15: 12.4204908 | AK15: 6.323158954 | AL15: 5.419850532 | AM15: 0 | AN15: 0.6774813165 | AO15: 0 | AP15: 0.2258271055 | AQ15: 0.2258271055 | AR15: 0.2258271055 | AS15: 0.2258271055 | AT15: 0 | AU15: 0 | AV15: 0 | AW15: 0 | AX15: 0 | AY15: 117.2042678
B16: West Lothian North | C16: 0.4590622813 | D16: 0.07907627712 | E16: 0.06158152554 | F16: 0.01049685094 | G16: 0.02029391183 | H16: 0.1021693492 | I16: 0.0321903429 | J16: 0.004898530441 | K16: 0.02239328202 | L16: 0.003498950315 | M16: 0 | N16: 0 | O16: 0.06228131561 | P16: 0.08607417775 | Q16: 0.0510846746 | R16: 0.002099370189 | S16: 0 | T16: 0.000699790063 | U16: 0.000699790063 | V16: 0 | W16: 0 | X16: 0.000699790063 | Y16: 0.000699790063 | Z16: 0 | AA16: 143.2738313 | AB16: 24.67979106 | AC16: 19.2196603 | AD16: 3.27607846 | AE16: 6.333751689 | AF16: 31.88716368 | AG16: 10.04664061 | AH16: 1.528836615 | AI16: 6.988967381 | AJ16: 1.092026153 | AK16: 0 | AL16: 0 | AM16: 19.43806553 | AN16: 26.86384337 | AO16: 15.94358184 | AP16: 0.655215692 | AQ16: 0 | AR16: 0.2184052307 | AS16: 0.2184052307 | AT16: 0 | AU16: 0 | AV16: 0.2184052307 | AW16: 0.2184052307 | AX16: 0 | AY16: 312.1010746
B17: West Lothian East | C17: 0.2909980431 | D17: 0.0637964775 | E17: 0.03502935421 | F17: 0.009001956947 | G17: 0.03170254403 | H17: 0.07925636008 | I17: 0.02661448141 | J17: 0.01702544031 | K17: 0.01017612524 | L17: 0.004500978474 | M17: 0.0001956947162 | N17: 0 | O17: 0.004305283757 | P17: 0.3684931507 | Q17: 0.05518590998 | R17: 0.001761252446 | S17: 0.0001956947162 | T17: 0 | U17: 0.0001956947162 | V17: 0 | W17: 0 | X17: 0.0009784735812 | Y17: 0.0003913894325 | Z17: 0.0001956947162 | AA17: 331.0546824 | AB17: 72.57822895 | AC17: 39.85123614 | AD17: 10.24109979 | AE17: 36.06648187 | AF17: 90.16620468 | AG17: 30.27803416 | AH17: 19.36903656 | AI17: 11.57689542 | AJ17: 5.120549895 | AK17: 0.2226326041 | AL17: 0 | AM17: 4.897917291 | AN17: 419.2171936 | AO17: 62.78239437 | AP17: 2.003693437 | AQ17: 0.2226326041 | AR17: 0 | AS17: 0.2226326041 | AT17: 0 | AU17: 0 | AV17: 1.113163021 | AW17: 0.4452652083 | AX17: 0.2226326041 | AY17: 1137.652607
B18: West Lothian West | C18: 0.2053450609 | D18: 0.04364005413 | E18: 0.02875507442 | F18: 0.007104194858 | G18: 0.01657645467 | H18: 0.0751014885 | I18: 0.01657645467 | J18: 0.001691474966 | K18: 0.002706359946 | L18: 0.001353179973 | M18: 0.0003382949932 | N18: 0 | O18: 0.007442489851 | P18: 0.3714479026 | Q18: 0.2205683356 | R18: 0.0003382949932 | S18: 0 | T18: 0.0003382949932 | U18: 0 | V18: 0 | W18: 0 | X18: 0 | Y18: 0.0003382949932 | Z18: 0.0003382949932 | AA18: 135.2477676 | AB18: 28.74293577 | AC18: 18.93914373 | AD18: 4.679082568 | AE18: 10.91785932 | AF18: 49.46458714 | AG18: 10.91785932 | AH18: 1.114067278 | AI18: 1.782507645 | AJ18: 0.8912538224 | AK18: 0.2228134556 | AL18: 0 | AM18: 4.901896023 | AN18: 244.6491743 | AO18: 145.2743731 | AP18: 0.2228134556 | AQ18: 0 | AR18: 0.2228134556 | AS18: 0 | AT18: 0 | AU18: 0 | AV18: 0 | AW18: 0.2228134556 | AX18: 0.2228134556 | AY18: 658.6365748
B19: Midlothian North | C19: 0.3351625158 | D19: 0.07788096243 | E19: 0.1312790207 | F19: 0.1300126636 | G19: 0.04221190376 | H19: 0.03208104686 | I19: 0.03355846349 | J19: 0.002321654707 | K19: 0.0006331785564 | L19: 0.01414098776 | M19: 0.0008442380751 | N19: 0 | O19: 0 | P19: 0.002321654707 | Q19: 0.0002110595188 | R19: 0.1677923174 | S19: 0.00696496412 | T19: 0.02110595188 | U19: 0.0008442380751 | V19: 0 | W19: 0 | X19: 0.0004221190376 | Y19: 0.0002110595188 | Z19: 0 | AA19: 357.5614271 | AB19: 83.08574722 | AC19: 140.0523978 | AD19: 138.70141 | AE19: 45.03292532 | AF19: 34.22502324 | AG19: 35.80117563 | AH19: 2.476810893 | AI19: 0.6754938798 | AJ19: 15.08602998 | AK19: 0.9006585064 | AL19: 0 | AM19: 0 | AN19: 2.476810893 | AO19: 0.2251646266 | AP19: 179.0058782 | AQ19: 7.430432678 | AR19: 22.51646266 | AS19: 0.9006585064 | AT19: 0 | AU19: 0 | AV19: 0.4503292532 | AW19: 0.2251646266 | AX19: 0 | AY19: 1066.830001
B20: Midlothian East | C20: 0.3504672897 | D20: 0.08995327103 | E20: 0.113317757 | F20: 0.08995327103 | G20: 0.03504672897 | H20: 0.01985981308 | I20: 0.03738317757 | J20: 0 | K20: 0 | L20: 0.01051401869 | M20: 0 | N20: 0 | O20: 0 | P20: 0.001168224299 | Q20: 0 | R20: 0.2278037383 | S20: 0.02102803738 | T20: 0.003504672897 | U20: 0 | V20: 0 | W20: 0 | X20: 0 | Y20: 0 | Z20: 0 | AA20: 66.75554808 | AB20: 17.13392401 | AC20: 21.58429388 | AD20: 17.13392401 | AE20: 6.675554808 | AF20: 3.782814391 | AG20: 7.120591796 | AH20: 0 | AI20: 0 | AJ20: 2.002666443 | AK20: 0 | AL20: 0 | AM20: 0 | AN20: 0.2225184936 | AO20: 0 | AP20: 43.39110626 | AQ20: 4.005332885 | AR20: 0.6675554808 | AS20: 0 | AT20: 0 | AU20: 0 | AV20: 0 | AW20: 0 | AX20: 0 | AY20: 190.4758305
B21: Midlothian South | C21: 0.3475997687 | D21: 0.1110468479 | E21: 0.1226142279 | F21: 0.06824754193 | G21: 0.05783689994 | H21: 0.02255639098 | I21: 0.04742625795 | J21: 0.0005783689994 | K21: 0 | L21: 0.008675534991 | M21: 0 | N21: 0 | O21: 0.0005783689994 | P21: 0.0005783689994 | Q21: 0 | R21: 0.1497975709 | S21: 0.001735106998 | T21: 0.05378831695 | U21: 0.005205320995 | V21: 0 | W21: 0 | X21: 0 | Y21: 0.001735106998 | Z21: 0 | AA21: 134.8842997 | AB21: 43.09115732 | AC21: 47.57981954 | AD21: 26.4831071 | AE21: 22.4433111 | AF21: 8.75289133 | AG21: 18.4035151 | AH21: 0.224433111 | AI21: 0 | AJ21: 3.366496665 | AK21: 0 | AL21: 0 | AM21: 0.224433111 | AN21: 0.224433111 | AO21: 0 | AP21: 58.12817576 | AQ21: 0.6732993331 | AR21: 20.87227933 | AS21: 2.019897999 | AT21: 0 | AU21: 0 | AV21: 0 | AW21: 0.6732993331 | AX21: 0 | AY21: 388.044849
B22: Scottish Borders West | C22: 0.1218274112 | D22: 0.03468697124 | E22: 0.03807106599 | F22: 0.02115059222 | G22: 0.02538071066 | H22: 0.01776649746 | I22: 0.02115059222 | J22: 0.008460236887 | K22: 0 | L22: 0.007614213198 | M22: 0 | N22: 0 | O22: 0 | P22: 0.004230118443 | Q22: 0.001692047377 | R22: 0.01607445008 | S22: 0.001692047377 | T22: 0.02030456853 | U22: 0.5930626058 | V22: 0.004230118443 | W22: 0.06175972927 | X22: 0 | Y22: 0 | Z22: 0.0008460236887 | AA22: 32.79620416 | AB22: 9.337808128 | AC22: 10.2488138 | AD22: 5.693785444 | AE22: 6.832542533 | AF22: 4.782779773 | AG22: 5.693785444 | AH22: 2.277514178 | AI22: 0 | AJ22: 2.04976276 | AK22: 0 | AL22: 0 | AM22: 0 | AN22: 1.138757089 | AO22: 0.4555028355 | AP22: 4.327276938 | AQ22: 0.4555028355 | AR22: 5.466034026 | AS22: 159.6537439 | AT22: 1.138757089 | AU22: 16.6258535 | AV22: 0 | AW22: 0 | AX22: 0.2277514178 | AY22: 269.2021758
B23: Scottish Borders East | C23: 0.2092050209 | D23: 0.0460251046 | E23: 0.04184100418 | F23: 0 | G23: 0.03765690377 | H23: 0.02510460251 | I23: 0.04184100418 | J23: 0 | K23: 0.004184100418 | L23: 0.008368200837 | M23: 0.008368200837 | N23: 0.004184100418 | O23: 0 | P23: 0 | Q23: 0.004184100418 | R23: 0.004184100418 | S23: 0 | T23: 0.004184100418 | U23: 0.1882845188 | V23: 0.309623431 | W23: 0.05020920502 | X23: 0 | Y23: 0.01255230126 | Z23: 0 | AA23: 11.99431903 | AB23: 2.638750186 | AC23: 2.398863806 | AD23: 0 | AE23: 2.158977425 | AF23: 1.439318283 | AG23: 2.398863806 | AH23: 0 | AI23: 0.2398863806 | AJ23: 0.4797727611 | AK23: 0.4797727611 | AL23: 0.2398863806 | AM23: 0 | AN23: 0 | AO23: 0.2398863806 | AP23: 0.2398863806 | AQ23: 0 | AR23: 0.2398863806 | AS23: 10.79488713 | AT23: 17.75159216 | AU23: 2.878636567 | AV23: 0 | AW23: 0.7196591417 | AX23: 0 | AY23: 57.33284495
B24: Scottish Borders South | C24: 0.03762376238 | D24: 0.01188118812 | E24: 0.01584158416 | F24: 0.007920792079 | G24: 0.01188118812 | H24: 0.005940594059 | I24: 0.00396039604 | J24: 0.00198019802 | K24: 0 | L24: 0 | M24: 0 | N24: 0.00198019802 | O24: 0 | P24: 0.00396039604 | Q24: 0 | R24: 0.00396039604 | S24: 0 | T24: 0 | U24: 0.4871287129 | V24: 0.00396039604 | W24: 0.401980198 | X24: 0 | Y24: 0 | Z24: 0 | AA24: 4.456822666 | AB24: 1.407417684 | AC24: 1.876556912 | AD24: 0.9382784559 | AE24: 1.407417684 | AF24: 0.703708842 | AG24: 0.469139228 | AH24: 0.234569614 | AI24: 0 | AJ24: 0 | AK24: 0 | AL24: 0.234569614 | AM24: 0 | AN24: 0.469139228 | AO24: 0 | AP24: 0.469139228 | AQ24: 0 | AR24: 0 | AS24: 57.70412504 | AT24: 0.469139228 | AU24: 47.61763164 | AV24: 0 | AW24: 0 | AX24: 0 | AY24: 118.4576551
B25: Fife West | C25: 0.3065967016 | D25: 0.05172413793 | E25: 0.03418290855 | F25: 0.005097451274 | G25: 0.01304347826 | H25: 0.05592203898 | I25: 0.01889055472 | J25: 0.002098950525 | K25: 0.008695652174 | L25: 0.00179910045 | M25: 0 | N25: 0 | O25: 0 | P25: 0.002098950525 | Q25: 0.0004497751124 | R25: 0.0007496251874 | S25: 0 | T25: 0 | U25: 0 | V25: 0 | W25: 0 | X25: 0.4148425787 | Y25: 0.0772113943 | Z25: 0.006596701649 | AA25: 453.928411 | AB25: 76.57960968 | AC25: 50.60913336 | AD25: 7.546976027 | AE25: 19.31137983 | AF25: 82.79476641 | AG25: 27.96820528 | AH25: 3.107578364 | AI25: 12.87425322 | AJ25: 2.663638598 | AK25: 0 | AL25: 0 | AM25: 0 | AN25: 3.107578364 | AO25: 0.6659096494 | AP25: 1.109849416 | AQ25: 0 | AR25: 0 | AS25: 0 | AT25: 0 | AU25: 0 | AV25: 614.1906666 | AW25: 114.3144898 | AX25: 9.766674858 | AY25: 1480.539121
B26: Fife Central | C26: 0.1781512605 | D26: 0.03260504202 | E26: 0.0218487395 | F26: 0.004537815126 | G26: 0.0131092437 | H26: 0.04067226891 | I26: 0.01193277311 | J26: 0.002521008403 | K26: 0.003361344538 | L26: 0.002352941176 | M26: 0.0001680672269 | N26: 0 | O26: 0 | P26: 0.0006722689076 | Q26: 0.0001680672269 | R26: 0.0005042016807 | S26: 0 | T26: 0 | U26: 0.0005042016807 | V26: 0 | W26: 0 | X26: 0.1284033613 | Y26: 0.5100840336 | Z26: 0.04840336134 | AA26: 237.9462647 | AB26: 43.54865599 | AC26: 29.18208906 | AD26: 6.060895421 | AE26: 17.50925344 | AF26: 54.32358118 | AG26: 15.93791018 | AH26: 3.367164123 | AI26: 4.489552163 | AJ26: 3.142686514 | AK26: 0.2244776082 | AL26: 0 | AM26: 0 | AN26: 0.8979104327 | AO26: 0.2244776082 | AP26: 0.6734328245 | AQ26: 0 | AR26: 0 | AS26: 0.6734328245 | AT26: 0 | AU26: 0 | AV26: 171.5008926 | AW26: 681.2895408 | AX26: 64.64955115 | AY26: 1335.641769
B27: Fife East | C27: 0.09919114517 | D27: 0.01745423585 | E27: 0.01575138357 | F27: 0.005959982971 | G27: 0.007662835249 | H27: 0.0153256705 | I27: 0.00723712218 | J27: 0.003831417625 | K27: 0.001702852278 | L27: 0.002554278416 | M27: 0 | N27: 0 | O27: 0.0008514261388 | P27: 0.0004257130694 | Q27: 0 | R27: 0.0004257130694 | S27: 0 | T27: 0 | U27: 0 | V27: 0 | W27: 0 | X27: 0.05619412516 | Y27: 0.1988080034 | Z27: 0.5666240954 | AA27: 52.63746698 | AB27: 9.262386893 | AC27: 8.358739391 | AD27: 3.162766256 | AE27: 4.066413758 | AF27: 8.132827516 | AG27: 3.840501883 | AH27: 2.033206879 | AI27: 0.9036475018 | AJ27: 1.355471253 | AK27: 0 | AL27: 0 | AM27: 0.4518237509 | AN27: 0.2259118754 | AO27: 0 | AP27: 0.2259118754 | AQ27: 0 | AR27: 0 | AS27: 0 | AT27: 0 | AU27: 0 | AV27: 29.82036756 | AW27: 105.5008458 | AX27: 300.6887062 | AY27: 530.6669954
AA28: =SUM(AA4:AA27) -> 7925.331678 | AB28: 2260.789488 | AC28: 1917.555092 | AD28: 1049.107333 | AE28: 1420.457129 | AF28: 1950.272443 | AG28: 1207.533717 | AH28: 366.0683632 | AI28: 93.48043864 | AJ28: 523.924924 | AK28: 61.14189307 | AL28: 52.49866361 | AM28: 40.01754493 | AN28: 796.2013427 | AO28: 238.6963731 | AP28: 482.014784 | AQ28: 14.84592534 | AR28: 115.8248548 | AS28: 241.1712219 | AT28: 19.81487529 | AU28: 68.27325202 | AV28: 861.375561 | AW28: 934.6468007 | AX28: 388.0012013 | AY28: 23029.0449 | AZ28: Total Census demand adjusted to match SRM12 hourly demand
B29: SRM12
B30: AM Peak Hour PT Commuter Trips from Sector to Sector (SRM12: Passengers) | C30: Edinburgh Central | D30: Edinburgh Northeast | E30: Edinburgh East | F30: Edinburgh Southeast | G30: Edinburgh Southwest Inner | H30: Edinburgh West | I30: Edinburgh Northwest Inner | J30: Edinburgh Southwest Outer | K30: Edinburgh Northwest Outer | L30: East Lothian West | M30: East Lothian East | N30: East Lothian South | O30: West Lothian North | P30: West Lothian East | Q30: West Lothian West | R30: Midlothian North | S30: Midlothian East | T30: Midlothian South | U30: Scottish Borders West | V30: Scottish Borders East | W30: Scottish Borders South | X30: Fife West | Y30: Fife Central | Z30: Fife East | AA30: Edinburgh Central | AB30: Edinburgh Northeast | AC30: Edinburgh East | AD30: Edinburgh Southeast | AE30: Edinburgh Southwest Inner | AF30: Edinburgh West | AG30: Edinburgh Northwest Inner | AH30: Edinburgh Southwest Outer | AI30: Edinburgh Northwest Outer | AJ30: East Lothian West | AK30: East Lothian East | AL30: East Lothian South | AM30: West Lothian North | AN30: West Lothian East | AO30: West Lothian West | AP30: Midlothian North | AQ30: Midlothian East | AR30: Midlothian South | AS30: Scottish Borders West | AT30: Scottish Borders East | AU30: Scottish Borders South | AV30: Fife West | AW30: Fife Central | AX30: Fife East | AY30: Total Sesplan
B31: Edinburgh Central | C31: =AA31/$AY31 -> 0.2713514546 | D31: =AB31/$AY31 -> 0.09308365801 | E31: =AC31/$AY31 -> 0.1374224074 | F31: =AD31/$AY31 -> 0.04664290776 | G31: =AE31/$AY31 -> 0.1009317712 | H31: =AF31/$AY31 -> 0.1292048027 | I31: =AG31/$AY31 -> 0.06373222708 | J31: =AH31/$AY31 -> 0.01126021839 | K31: =AI31/$AY31 -> 0.01133582018 | L31: =AJ31/$AY31 -> 0.06353730564 | M31: =AK31/$AY31 -> 0.002624731069 | N31: =AL31/$AY31 -> 0.002574455507 | O31: =AM31/$AY31 -> 0.002713825094 | P31: =AN31/$AY31 -> 0.007534324377 | Q31: =AO31/$AY31 -> 0.000134922423 | R31: =AP31/$AY31 -> 0.02999905856 | S31: =AQ31/$AY31 -> 0 | T31: =AR31/$AY31 -> 0.007852258892 | U31: =AS31/$AY31 -> 0 | V31: =AT31/$AY31 -> 1.507513106e-07 | W31: =AU31/$AY31 -> 0 | X31: =AV31/$AY31 -> 0.01188108767 | Y31: =AW31/$AY31 -> 0.005978043222 | Z31: =AX31/$AY31 -> 0.0002045695285 | AA31: 359.9988 | AB31: 123.493 | AC31: 182.3167 | AD31: 61.8806 | AE31: 133.905 | AF31: 171.4145 | AG31: 84.5528 | AH31: 14.9388 | AI31: 15.0391 | AJ31: 84.2942 | AK31: 3.4822 | AL31: 3.4155 | AM31: 3.6004 | AN31: 9.9957 | AO31: 0.179 | AP31: 39.7994 | AQ31: 0 | AR31: 10.4175 | AS31: 0 | AT31: 0.0002 | AU31: 0 | AV31: 15.7625 | AW31: 7.931 | AX31: 0.2714 | AY31: =SUM(AA31:AX31) -> 1326.6883
B32: Edinburgh Northeast | C32: 0.4413788281 | D32: 0.1646042995 | E32: 0.1085719855 | F32: 0.04104903402 | G32: 0.06190706576 | H32: 0.06852848797 | I32: 0.07259984809 | J32: 0.0001354764004 | K32: 0.003858765169 | L32: 0.01123965399 | M32: 0.0004542243084 | N32: 0.004158542177 | O32: 0.0002053429149 | P32: 0.003539570578 | Q32: 0.0001214978424 | R32: 0.01154132284 | S32: 0.0007537911124 | T32: 0.002059945469 | U32: 0.0004709880678 | V32: 0 | W32: 0 | X32: 0.001424236386 | Y32: 0.00139709381 | Z32: 0 | AA32: 1679.8123 | AB32: 626.4558 | AC32: 413.2064 | AD32: 156.2256 | AE32: 235.6077 | AF32: 260.8077 | AG32: 276.3026 | AH32: 0.5156 | AI32: 14.6858 | AJ32: 42.7762 | AK32: 1.7287 | AL32: 15.8267 | AM32: 0.7815 | AN32: 13.471 | AO32: 0.4624 | AP32: 43.9243 | AQ32: 2.8688 | AR32: 7.8398 | AS32: 1.7925 | AT32: 0 | AU32: 0 | AV32: 5.4204 | AW32: 5.3171 | AX32: 0 | AY32: 3805.8289
B33: Edinburgh East | C33: 0.3594377123 | D33: 0.1281133437 | E33: 0.182139335 | F33: 0.07632912237 | G33: 0.08643277713 | H33: 0.06521904796 | I33: 0.04062509773 | J33: 0.0002348208273 | K33: 0.006103934148 | L33: 0.02004181427 | M33: 3.883274502e-05 | N33: 0.00112771334 | O33: 0.0005722226508 | P33: 0.007685443298 | Q33: 0.0002677635049 | R33: 0.01505490794 | S33: 7.422527371e-05 | T33: 0.004380073016 | U33: 0.001518282144 | V33: 0 | W33: 0.000742356986 | X33: 0.002295197666 | Y33: 0.001562014591 | Z33: 3.961461237e-06 | AA33: 689.5755 | AB33: 245.7834 | AC33: 349.4314 | AD33: 146.4362 | AE33: 165.8199 | AF33: 125.1217 | AG33: 77.9386 | AH33: 0.4505 | AI33: 11.7103 | AJ33: 38.4499 | AK33: 0.0745 | AL33: 2.1635 | AM33: 1.0978 | AN33: 14.7444 | AO33: 0.5137 | AP33: 28.8826 | AQ33: 0.1424 | AR33: 8.4031 | AS33: 2.9128 | AT33: 0 | AU33: 1.4242 | AV33: 4.4033 | AW33: 2.9967 | AX33: 0.0076 | AY33: 1918.484
B34: Edinburgh Southeast | C34: 0.3749675672 | D34: 0.09110985001 | E34: 0.1594255698 | F34: 0.1842057808 | G34: 0.07077482772 | H34: 0.05013879716 | I34: 0.02870133086 | J34: 0.0008626661419 | K34: 0.0001681610413 | L34: 0.002007644997 | M34: 4.035864991e-05 | N34: 0.001438271494 | O34: 0.002711844087 | P34: 0.003829917175 | Q34: 1.612367631e-05 | R34: 0.01556884379 | S34: 0.0005004274753 | T34: 0.00875673893 | U34: 0.001995873724 | V34: 0 | W34: 0 | X34: 0.001212243271 | Y34: 0.00156468903 | Z34: 2.47295649e-06 | AA34: 379.0681 | AB34: 92.1062 | AC34: 161.169 | AD34: 186.2202 | AE34: 71.5488 | AF34: 50.6871 | AG34: 29.0152 | AH34: 0.8721 | AI34: 0.17 | AJ34: 2.0296 | AK34: 0.0408 | AL34: 1.454 | AM34: 2.7415 | AN34: 3.8718 | AO34: 0.0163 | AP34: 15.7391 | AQ34: 0.5059 | AR34: 8.8525 | AS34: 2.0177 | AT34: 0 | AU34: 0 | AV34: 1.2255 | AW34: 1.5818 | AX34: 0.0025 | AY34: 1010.9357
B35: Edinburgh Southwest Inner | C35: 0.4341478795 | D35: 0.09662492466 | E35: 0.08469398455 | F35: 0.03326721419 | G35: 0.1292514139 | H35: 0.1099077185 | I35: 0.05663201326 | J35: 0.0006286718759 | K35: 0.01211630862 | L35: 0.01094787369 | M35: 0.001154928445 | N35: 0.0005083542743 | O35: 0.0001782784969 | P35: 0.001601705915 | Q35: 0.0002031999094 | R35: 0.01172267084 | S35: 0.0009085503275 | T35: 0.005544712949 | U35: 0.0007035779137 | V35: 0 | W35: 0 | X35: 0.005279900785 | Y35: 0.003972997809 | Z35: 3.11960782e-06 | AA35: 1224.6736 | AB35: 272.5661 | AC35: 238.9105 | AD35: 93.8424 | AE35: 364.6011 | AF35: 310.0351 | AG35: 159.7514 | AH35: 1.7734 | AI35: 34.1785 | AJ35: 30.8825 | AK35: 3.2579 | AL35: 1.434 | AM35: 0.5029 | AN35: 4.5182 | AO35: 0.5732 | AP35: 33.0681 | AQ35: 2.5629 | AR35: 15.6409 | AS35: 1.9847 | AT35: 0 | AU35: 0 | AV35: 14.8939 | AW35: 11.2073 | AX35: 0.0088 | AY35: 2820.8674
B36: Edinburgh West | C36: 0.5171946178 | D36: 0.08705388453 | E36: 0.06012724729 | F36: 0.01243959024 | G36: 0.0600883707 | H36: 0.1643477742 | I36: 0.06745929384 | J36: 0.00332683814 | K36: 0.009714551246 | L36: 0.005998290481 | M36: 0 | N36: 0 | O36: 0.0001792788812 | P36: 0.0008450405288 | Q36: 0.001649497047 | R36: 0.00404815654 | S36: 0 | T36: 0.001119934813 | U36: 0 | V36: 0 | W36: 0 | X36: 0.002165268598 | Y36: 0.002242365084 | Z36: 0 | AA36: 393.7835 | AB36: 66.2814 | AC36: 45.7799 | AD36: 9.4713 | AE36: 45.7503 | AF36: 125.1317 | AG36: 51.3624 | AH36: 2.533 | AI36: 7.3965 | AJ36: 4.567 | AK36: 0 | AL36: 0 | AM36: 0.1365 | AN36: 0.6434 | AO36: 1.2559 | AP36: 3.0822 | AQ36: 0 | AR36: 0.8527 | AS36: 0 | AT36: 0 | AU36: 0 | AV36: 1.6486 | AW36: 1.7073 | AX36: 0 | AY36: 761.3836
B37: Edinburgh Northwest Inner | C37: 0.421686954 | D37: 0.1372405783 | E37: 0.07709751274 | F37: 0.01671043442 | G37: 0.05259826267 | H37: 0.09215816878 | I37: 0.1732582093 | J37: 0.0001616945209 | K37: 0.002206530034 | L37: 0.015105022 | M37: 0.003456073283 | N37: 0 | O37: 7.296259314e-06 | P37: 0.0008212998992 | Q37: 6.837301067e-05 | R37: 0.002994231836 | S37: 0 | T37: 0.0007907026827 | U37: 0 | V37: 0 | W37: 0 | X37: 0.002159398553 | Y37: 0.001335450818 | Z37: 0.0001438069174 | AA37: 716.6574 | AB37: 233.2405 | AC37: 131.0273 | AD37: 28.3994 | AE37: 89.3908 | AF37: 156.6229 | AG37: 294.4525 | AH37: 0.2748 | AI37: 3.75 | AJ37: 25.671 | AK37: 5.8736 | AL37: 0 | AM37: 0.0124 | AN37: 1.3958 | AO37: 0.1162 | AP37: 5.0887 | AQ37: 0 | AR37: 1.3438 | AS37: 0 | AT37: 0 | AU37: 0 | AV37: 3.6699 | AW37: 2.2696 | AX37: 0.2444 | AY37: 1699.501
B38: Edinburgh Southwest Outer | C38: 0.520424912 | D38: 0.07161086243 | E38: 0.05029063186 | F38: 0.02598566986 | G38: 0.0332046959 | H38: 0.1635404895 | I38: 0.02202972831 | J38: 0.08717039493 | K38: 0.001783073209 | L38: 0.003117856802 | M38: 0 | N38: 0.0007306767761 | O38: 0.0001119463384 | P38: 0.006038042593 | Q38: 0.0003207111316 | R38: 0.006975971374 | S38: 0 | T38: 0.003015491457 | U38: 0 | V38: 0 | W38: 0 | X38: 0.002980697325 | Y38: 0.0005526720129 | Z38: 0.0001154761779 | AA38: 103.2051 | AB38: 14.2011 | AC38: 9.9731 | AD38: 5.1532 | AE38: 6.5848 | AF38: 32.4316 | AG38: 4.3687 | AH38: 17.2867 | AI38: 0.3536 | AJ38: 0.6183 | AK38: 0 | AL38: 0.1449 | AM38: 0.0222 | AN38: 1.1974 | AO38: 0.0636 | AP38: 1.3834 | AQ38: 0 | AR38: 0.598 | AS38: 0 | AT38: 0 | AU38: 0 | AV38: 0.5911 | AW38: 0.1096 | AX38: 0.0229 | AY38: 198.3093
B39: Edinburgh Northwest Outer | C39: 0.5252689908 | D39: 0.07020418179 | E39: 0.05108283859 | F39: 0.000766452802 | G39: 0.03097585915 | H39: 0.1873425696 | I39: 0.02276371714 | J39: 0.003413196291 | K39: 0.07008873139 | L39: 0.009917706266 | M39: 0 | N39: 0 | O39: 0.002524745156 | P39: 0.009134366689 | Q39: 0.0002436520373 | R39: 0 | S39: 0 | T39: 3.790908643e-06 | U39: 0 | V39: 0 | W39: 0 | X39: 0.01006899798 | Y39: 0.006200203399 | Z39: 0 | AA39: 152.4162 | AB39: 20.371 | AC39: 14.8226 | AD39: 0.2224 | AE39: 8.9882 | AF39: 54.3608 | AG39: 6.6053 | AH39: 0.9904 | AI39: 20.3375 | AJ39: 2.8778 | AK39: 0 | AL39: 0 | AM39: 0.7326 | AN39: 2.6505 | AO39: 0.0707 | AP39: 0 | AQ39: 0 | AR39: 0.0011 | AS39: 0 | AT39: 0 | AU39: 0 | AV39: 2.9217 | AW39: 1.7991 | AX39: 0 | AY39: 290.1679
B40: East Lothian West | C40: 0.4858833477 | D40: 0.07078257798 | E40: 0.1080993466 | F40: 0.02239258744 | G40: 0.01746123882 | H40: 0.01670676957 | I40: 0.02183930445 | J40: 0.0006899001755 | K40: 0.0009688684831 | L40: 0.199924711 | M40: 0.009002274876 | N40: 0.01920493617 | O40: 0.0007032793526 | P40: 0.0001097757326 | Q40: 0 | R40: 0.02296764275 | S40: 0.0006201788738 | T40: 0.0008915850378 | U40: 9.722756027e-05 | V40: 0.000210327312 | W40: 0 | X40: 0.0003651435041 | Y40: 0.001060943814 | Z40: 1.803280391e-05 | AA40: 584.6938 | AB40: 85.1771 | AC40: 130.0827 | AD40: 26.9464 | AE40: 21.0122 | AF40: 20.1043 | AG40: 26.2806 | AH40: 0.8302 | AI40: 1.1659 | AJ40: 240.5819 | AK40: 10.833 | AL40: 23.1105 | AM40: 0.8463 | AN40: 0.1321 | AO40: 0 | AP40: 27.6384 | AQ40: 0.7463 | AR40: 1.0729 | AS40: 0.117 | AT40: 0.2531 | AU40: 0 | AV40: 0.4394 | AW40: 1.2767 | AX40: 0.0217 | AY40: 1203.3625
B41: East Lothian East | C41: 0.5381249566 | D41: 0.1227771825 | E41: 0.1038926572 | F41: 0.02092661293 | G41: 0.04001012418 | H41: 0.03683414732 | I41: 0.03256516554 | J41: 0.0006040476867 | K41: 0 | L41: 0.02020960171 | M41: 0.06273989981 | N41: 0.01784114869 | O41: 0 | P41: 3.190392711e-05 | Q41: 0 | R41: 0.001975207576 | S41: 0 | T41: 0 | U41: 0 | V41: 0.0004424011226 | W41: 0 | X41: 0 | Y41: 0.001024943199 | Z41: 0 | AA41: 227.7051 | AB41: 51.9526 | AC41: 43.9617 | AD41: 8.855 | AE41: 16.9301 | AF41: 15.5862 | AG41: 13.7798 | AH41: 0.2556 | AI41: 0 | AJ41: 8.5516 | AK41: 26.5481 | AL41: 7.5494 | AM41: 0 | AN41: 0.0135 | AO41: 0 | AP41: 0.8358 | AQ41: 0 | AR41: 0 | AS41: 0 | AT41: 0.1872 | AU41: 0 | AV41: 0 | AW41: 0.4337 | AX41: 0 | AY41: 423.1454
B42: East Lothian South | C42: 0.3421570017 | D42: 0.1336342393 | E42: 0.1466916695 | F42: 0.04596448001 | G42: 0.008790961191 | H42: 0.02180720454 | I42: 0.002019365069 | J42: 0 | K42: 0 | L42: 0.09308340208 | M42: 0.07335734282 | N42: 0.09968540545 | O42: 0 | P42: 0.0003670471601 | Q42: 0 | R42: 0.03081500217 | S42: 0 | T42: 0 | U42: 0 | V42: 0.001626878997 | W42: 0 | X42: 0 | Y42: 0 | Z42: 0 | AA42: 28.2453 | AB42: 11.0316 | AC42: 12.1095 | AD42: 3.7944 | AE42: 0.7257 | AF42: 1.8002 | AG42: 0.1667 | AH42: 0 | AI42: 0 | AJ42: 7.6841 | AK42: 6.0557 | AL42: 8.2291 | AM42: 0 | AN42: 0.0303 | AO42: 0 | AP42: 2.5438 | AQ42: 0 | AR42: 0 | AS42: 0 | AT42: 0.1343 | AU42: 0 | AV42: 0 | AW42: 0 | AX42: 0 | AY42: 82.5507
B43: West Lothian North | C43: 0.4202303173 | D43: 0.09204319338 | E43: 0.03677295403 | F43: 0.002366974752 | G43: 0.006345142037 | H43: 0.04213051082 | I43: 0.0428537462 | J43: 0.000410934842 | K43: 0.02599697041 | L43: 0.004037298175 | M43: 3.031079246e-05 | N43: 2.484491185e-05 | O43: 0.1007791613 | P43: 0.1194709823 | Q43: 0.1020971839 | R43: 0.003341392195 | S43: 5.714329725e-06 | T43: 6.956575318e-05 | U43: 8.447270029e-05 | V43: 2.931699598e-05 | W43: 8.248510734e-05 | X43: 0.0002288216381 | Y43: 0.0004084503508 | Z43: 0.000159255885 | AA43: 169.1414 | AB43: 37.0471 | AC43: 14.801 | AD43: 0.9527 | AE43: 2.5539 | AF43: 16.9574 | AG43: 17.2485 | AH43: 0.1654 | AI43: 10.4637 | AJ43: 1.625 | AK43: 0.0122 | AL43: 0.01 | AM43: 40.5633 | AN43: 48.0867 | AO43: 41.0938 | AP43: 1.3449 | AQ43: 0.0023 | AR43: 0.028 | AS43: 0.034 | AT43: 0.0118 | AU43: 0.0332 | AV43: 0.0921 | AW43: 0.1644 | AX43: 0.0641 | AY43: 402.4969
B44: West Lothian East | C44: 0.3224770854 | D44: 0.07385443792 | E44: 0.02769218971 | F44: 0.001637696653 | G44: 0.01460978786 | H44: 0.02272931442 | I44: 0.02193104269 | J44: 0.01205136361 | K44: 0.0176335444 | L44: 0.003652798272 | M44: 1.425305987e-05 | N44: 1.475492817e-05 | O44: 0.01327542041 | P44: 0.4113181139 | Q44: 0.05504320936 | R44: 0.001387364743 | S44: 3.613451797e-06 | T44: 0.0002281493315 | U44: 5.219430373e-05 | V44: 1.706352237e-05 | W44: 5.068869882e-05 | X44: 0.0001099091588 | Y44: 0.0001370100473 | Z44: 7.899407123e-05 | AA44: 321.2766 | AB44: 73.5795 | AC44: 27.5891 | AD44: 1.6316 | AE44: 14.5554 | AF44: 22.6447 | AG44: 21.8494 | AH44: 12.0065 | AI44: 17.5679 | AJ44: 3.6392 | AK44: 0.0142 | AL44: 0.0147 | AM44: 13.226 | AN44: 409.7869 | AO44: 54.8383 | AP44: 1.3822 | AQ44: 0.0036 | AR44: 0.2273 | AS44: 0.052 | AT44: 0.017 | AU44: 0.0505 | AV44: 0.1095 | AW44: 0.1365 | AX44: 0.0787 | AY44: 996.2773
B45: West Lothian West | C45: 0.253491802 | D45: 0.04668431838 | E45: 0.02714852265 | F45: 0.0006636396221 | G45: 0.005623508384 | H45: 0.02821990191 | I45: 0.008139659838 | J45: 0.001678227791 | K45: 0.01940419003 | L45: 0.004164963501 | M45: 0.0001938378604 | N45: 0.0001610214507 | O45: 0.0364335262 | P45: 0.3192490857 | Q45: 0.2420097994 | R45: 0.0006386447401 | S45: 4.284836914e-05 | T45: 0.0005004077396 | U45: 0.0005743721864 | V45: 0.0001914573955 | W45: 0.0005662105923 | X45: 0.001286981373 | Y45: 0.001876656549 | Z45: 0.001056416339 | AA45: 149.0837 | AB45: 27.456 | AC45: 15.9666 | AD45: 0.3903 | AE45: 3.3073 | AF45: 16.5967 | AG45: 4.7871 | AH45: 0.987 | AI45: 11.412 | AJ45: 2.4495 | AK45: 0.114 | AL45: 0.0947 | AM45: 21.4273 | AN45: 187.7569 | AO45: 142.3309 | AP45: 0.3756 | AQ45: 0.0252 | AR45: 0.2943 | AS45: 0.3378 | AT45: 0.1126 | AU45: 0.333 | AV45: 0.7569 | AW45: 1.1037 | AX45: 0.6213 | AY45: 588.1204
B46: Midlothian North | C46: 0.4852205429 | D46: 0.06772949686 | E46: 0.1091165628 | F46: 0.05014868801 | G46: 0.01782648137 | H46: 0.009050301591 | I46: 0.0286476803 | J46: 0.0009677518186 | K46: 0.0009972477447 | L46: 0.01562751251 | M46: 0.0008457718922 | N46: 0.001563379228 | O46: 1.398677783e-05 | P46: 0.00254074101 | Q46: 0.0004686997796 | R46: 0.1888333943 | S46: 0.002950163493 | T46: 0.01525633958 | U46: 0.0008717473368 | V46: 0 | W46: 9.324518555e-06 | X46: 0.000707236188 | Y46: 0.0006069500394 | Z46: 0 | AA46: 509.9632 | AB46: 71.1832 | AC46: 114.6807 | AD46: 52.7059 | AE46: 18.7355 | AF46: 9.5118 | AG46: 30.1085 | AH46: 1.0171 | AI46: 1.0481 | AJ46: 16.4244 | AK46: 0.8889 | AL46: 1.6431 | AM46: 0.0147 | AN46: 2.6703 | AO46: 0.4926 | AP46: 198.4625 | AQ46: 3.1006 | AR46: 16.0343 | AS46: 0.9162 | AT46: 0 | AU46: 0.0098 | AV46: 0.7433 | AW46: 0.6379 | AX46: 0 | AY46: 1050.9926
B47: Midlothian East | C47: 0.4555779264 | D47: 0.0784352316 | E47: 0.1240981659 | F47: 0.02975434328 | G47: 0.05973601979 | H47: 0.006052221393 | I47: 0.005528091969 | J47: 0 | K47: 0.003472620552 | L47: 0.004845039768 | M47: 0.00229596052 | N47: 4.736109255e-06 | O47: 0 | P47: 7.893515424e-06 | Q47: 0 | R47: 0.1892696604 | S47: 0.0275646821 | T47: 0.006542145584 | U47: 0.002619068418 | V47: 0.0041961928 | W47: 0 | X47: 0 | Y47: 0 | Z47: 0 | AA47: 86.5732 | AB47: 14.905 | AC47: 23.5823 | AD47: 5.6542 | AE47: 11.3516 | AF47: 1.1501 | AG47: 1.0505 | AH47: 0 | AI47: 0.6599 | AJ47: 0.9207 | AK47: 0.4363 | AL47: 0.0009 | AM47: 0 | AN47: 0.0015 | AO47: 0 | AP47: 35.9668 | AQ47: 5.2381 | AR47: 1.2432 | AS47: 0.4977 | AT47: 0.7974 | AU47: 0 | AV47: 0 | AW47: 0 | AX47: 0 | AY47: 190.0294
B48: Midlothian South | C48: 0.4061451241 | D48: 0.1183621036 | E48: 0.1766319131 | F48: 0.05487112211 | G48: 0.03989389657 | H48: 0.0004228568765 | I48: 0.01672428632 | J48: 0.001128937703 | K48: 0.0002469413792 | L48: 0.00276956961 | M48: 0.0001618422575 | N48: 0 | O48: 0 | P48: 0 | Q48: 0 | R48: 0.1281405864 | S48: 0.001514852326 | T48: 0.05130201656 | U48: 0.001393250738 | V48: 0.0002907003592 | W48: 0 | X48: 0 | Y48: 0 | Z48: 0 | AA48: 184.7001 | AB48: 53.8268 | AC48: 80.3258 | AD48: 24.9534 | AE48: 18.1423 | AF48: 0.1923 | AG48: 7.6056 | AH48: 0.5134 | AI48: 0.1123 | AJ48: 1.2595 | AK48: 0.0736 | AL48: 0 | AM48: 0 | AN48: 0 | AO48: 0 | AP48: 58.2737 | AQ48: 0.6889 | AR48: 23.3303 | AS48: 0.6336 | AT48: 0.1322 | AU48: 0 | AV48: 0 | AW48: 0 | AX48: 0 | AY48: 454.7638
B49: Scottish Borders West | C49: 0.1227106177 | D49: 0.02509889259 | E49: 0.07318426657 | F49: 0.03644445868 | G49: 0.02255146298 | H49: 0.002840053578 | I49: 0.008393777159 | J49: 0.0005259736986 | K49: 0 | L49: 0 | M49: 0 | N49: 0 | O49: 0 | P49: 0.008067428193 | Q49: 0 | R49: 0.01905803016 | S49: 0.001144946633 | T49: 0.008355623626 | U49: 0.5006216982 | V49: 0.0111643368 | W49: 0.1566096907 | X49: 0 | Y49: 0.003228742691 | Z49: 0 | AA49: 36.0218 | AB49: 7.3678 | AC49: 21.4833 | AD49: 10.6983 | AE49: 6.62 | AF49: 0.8337 | AG49: 2.464 | AH49: 0.1544 | AI49: 0 | AJ49: 0 | AK49: 0 | AL49: 0 | AM49: 0 | AN49: 2.3682 | AO49: 0 | AP49: 5.5945 | AQ49: 0.3361 | AR49: 2.4528 | AS49: 146.9579 | AT49: 3.2773 | AU49: 45.9729 | AV49: 0 | AW49: 0.9478 | AX49: 0 | AY49: 293.5508
B50: Scottish Borders East | C50: 0.1607195807 | D50: 0.04741916114 | E50: 0.03106050497 | F50: 0.01320998087 | G50: 0 | H50: 0.0112362674 | I50: 0.04712264081 | J50: 0 | K50: 0.01220922475 | L50: 0.004938916811 | M50: 0.04691137007 | N50: 0 | O50: 0 | P50: 0 | Q50: 0 | R50: 0 | S50: 0 | T50: 0.006113878634 | U50: 0.07009926018 | V50: 0.4477216119 | W50: 0.1012376017 | X50: 0 | Y50: 0 | Z50: 0 | AA50: 8.6723 | AB50: 2.5587 | AC50: 1.676 | AD50: 0.7128 | AE50: 0 | AF50: 0.6063 | AG50: 2.5427 | AH50: 0 | AI50: 0.6588 | AJ50: 0.2665 | AK50: 2.5313 | AL50: 0 | AM50: 0 | AN50: 0 | AO50: 0 | AP50: 0 | AQ50: 0 | AR50: 0.3299 | AS50: 3.7825 | AT50: 24.1587 | AU50: 5.4627 | AV50: 0 | AW50: 0 | AX50: 0 | AY50: 53.9592
B51: Scottish Borders South | C51: 0.04895438849 | D51: 0.02221228992 | E51: 0.0293514909 | F51: 0.006860086868 | G51: 0.003668356806 | H51: 0 | I51: 0 | J51: 0 | K51: 0 | L51: 0.006941688334 | M51: 0 | N51: 0 | O51: 0 | P51: 0 | Q51: 0 | R51: 0.02648523941 | S51: 0 | T51: 0 | U51: 0.268069161 | V51: 0.03439687244 | W51: 0.5530604259 | X51: 0 | Y51: 0 | Z51: 0 | AA51: 5.2793 | AB51: 2.3954 | AC51: 3.1653 | AD51: 0.7398 | AE51: 0.3956 | AF51: 0 | AG51: 0 | AH51: 0 | AI51: 0 | AJ51: 0.7486 | AK51: 0 | AL51: 0 | AM51: 0 | AN51: 0 | AO51: 0 | AP51: 2.8562 | AQ51: 0 | AR51: 0 | AS51: 28.9089 | AT51: 3.7094 | AU51: 59.6427 | AV51: 0 | AW51: 0 | AX51: 0 | AY51: 107.8412
B52: Fife West | C52: 0.3325678017 | D52: 0.04467437218 | E52: 0.02628216761 | F52: 0.002140220628 | G52: 0.01261817315 | H52: 0.07738292536 | I52: 0.01644512186 | J52: 0.002462875435 | K52: 0.002192174142 | L52: 0.005552128271 | M52: 5.430169597e-06 | N52: 6.824402331e-06 | O52: 8.064535658e-05 | P52: 0.001843028913 | Q52: 8.189282797e-05 | R52: 1.665741214e-05 | S52: 9.539487129e-07 | T52: 4.402840214e-06 | U52: 1.467613405e-05 | V52: 4.916504905e-06 | W52: 1.423585002e-05 | X52: 0.4054849263 | Y52: 0.06779500699 | Z52: 0.002328442047 | AA52: 453.209 | AB52: 60.8803 | AC52: 35.8162 | AD52: 2.9166 | AE52: 17.1955 | AF52: 105.4541 | AG52: 22.4107 | AH52: 3.3563 | AI52: 2.9874 | AJ52: 7.5662 | AK52: 0.0074 | AL52: 0.0093 | AM52: 0.1099 | AN52: 2.5116 | AO52: 0.1116 | AP52: 0.0227 | AQ52: 0.0013 | AR52: 0.006 | AS52: 0.02 | AT52: 0.0067 | AU52: 0.0194 | AV52: 552.5773 | AW52: 92.3881 | AX52: 3.1731 | AY52: 1362.7567
B53: Fife Central | C53: 0.1807075419 | D53: 0.03082112543 | E53: 0.03692606431 | F53: 0.001530186683 | G53: 0.006763329212 | H53: 0.03578344025 | I53: 0.007368418706 | J53: 0.0002148246723 | K53: 0.003951963312 | L53: 3.884408383e-05 | M53: 1.378120539e-05 | N53: 1.270032654e-05 | O53: 9.532000398e-05 | P53: 0.00017929078 | Q53: 8.761874214e-05 | R53: 0.001418180612 | S53: 3.039971778e-06 | T53: 1.398387018e-05 | U53: 0.0003992496269 | V53: 1.526741382e-05 | W53: 4.377559361e-05 | X53: 0.09340164668 | Y53: 0.5647174525 | Z53: 0.03549295405 | AA53: 267.4972 | AB53: 45.6238 | AC53: 54.6608 | AD53: 2.2651 | AE53: 10.0116 | AF53: 52.9694 | AG53: 10.9073 | AH53: 0.318 | AI53: 5.85 | AJ53: 0.0575 | AK53: 0.0204 | AL53: 0.0188 | AM53: 0.1411 | AN53: 0.2654 | AO53: 0.1297 | AP53: 2.0993 | AQ53: 0.0045 | AR53: 0.0207 | AS53: 0.591 | AT53: 0.0226 | AU53: 0.0648 | AV53: 138.2603 | AW53: 835.9382 | AX53: 52.5394 | AY53: 1480.2769
B54: Fife East | C54: 0.05335122495 | D54: 0.0007038904402 | E54: 0.0112608657 | F54: 0.003878402778 | G54: 0.002815759095 | H54: 0.002630659786 | I54: 0.00122702292 | J54: 0.002215469014 | K54: 0.002340973449 | L54: 0 | M54: 0 | N54: 0 | O54: 0 | P54: 1.973340174e-06 | Q54: 1.973340174e-07 | R54: 0 | S54: 0 | T54: 0 | U54: 0 | V54: 0 | W54: 0 | X54: 0.04697378418 | Y54: 0.2675182287 | Z54: 0.6050815483 | AA54: 27.036 | AB54: 0.3567 | AC54: 5.7065 | AD54: 1.9654 | AE54: 1.4269 | AF54: 1.3331 | AG54: 0.6218 | AH54: 1.1227 | AI54: 1.1863 | AJ54: 0 | AK54: 0 | AL54: 0 | AM54: 0 | AN54: 0.001 | AO54: 0.0001 | AP54: 0 | AQ54: 0 | AR54: 0 | AS54: 0 | AT54: 0 | AU54: 0 | AV54: 23.8042 | AW54: 135.5662 | AX54: 306.6281 | AY54: 506.755
AA55: =SUM(AA31:AA54) -> 8758.2885 | AB55: 2239.8401 | AC55: 2132.2444 | AD55: 833.0332 | AE55: 1265.1602 | AF55: 1552.3534 | AG55: 1146.1727 | AH55: 60.3619 | AI55: 160.7336 | AJ55: 523.9412 | AK55: 61.9928 | AL55: 65.1191 | AM55: 85.9564 | AN55: 706.1126 | AO55: 242.248 | AP55: 508.3642 | AQ55: 16.2269 | AR55: 98.9891 | AS55: 191.5563 | AT55: 32.8205 | AU55: 113.0132 | AV55: 767.3199 | AW55: 1103.5127 | AX55: 363.684 | AY55: 23029.0449
B57: Difference between 2011 Census & SRM12 | C57: Edinburgh Central | D57: Edinburgh Northeast | E57: Edinburgh East | F57: Edinburgh Southeast | G57: Edinburgh Southwest Inner | H57: Edinburgh West | I57: Edinburgh Northwest Inner | J57: Edinburgh Southwest Outer | K57: Edinburgh Northwest Outer | L57: East Lothian West | M57: East Lothian East | N57: East Lothian South | O57: West Lothian North | P57: West Lothian East | Q57: West Lothian West | R57: Midlothian North | S57: Midlothian East | T57: Midlothian South | U57: Scottish Borders West | V57: Scottish Borders East | W57: Scottish Borders South | X57: Fife West | Y57: Fife Central | Z57: Fife East | AA57: Edinburgh Central | AB57: Edinburgh Northeast | AC57: Edinburgh East | AD57: Edinburgh Southeast | AE57: Edinburgh Southwest Inner | AF57: Edinburgh West | AG57: Edinburgh Northwest Inner | AH57: Edinburgh Southwest Outer | AI57: Edinburgh Northwest Outer | AJ57: East Lothian West | AK57: East Lothian East | AL57: East Lothian South | AM57: West Lothian North | AN57: West Lothian East | AO57: West Lothian West | AP57: Midlothian North | AQ57: Midlothian East | AR57: Midlothian South | AS57: Scottish Borders West | AT57: Scottish Borders East | AU57: Scottish Borders South | AV57: Fife West | AW57: Fife Central | AX57: Fife East | AY57: Total Sesplan
B58: Edinburgh Central | C58: =C31-C4 -> 0.1281610201 | D58: -0.01686093225 | E58: 0.07297213031 | F58: -0.02218182248 | G58: -0.02767715265 | H58: -0.08805970594 | I58: -0.01209162827 | J58: -0.07593721526 | K58: 0.004336695068 | L58: 0.03204124264 | M58: 0.002041470643 | N58: 0.001699564868 | O58: 0.0006724136034 | P58: -0.008505337331 | Q58: -0.002489749493 | R58: 0.01250124578 | S58: 0 | T58: -0.0008966474951 | U58: -0.001749781277 | V58: 1.507513106e-07 | W58: -0.0005832604258 | X58: 0.004590332345 | Y58: 0.001895220242 | Z58: -0.003878253452 | AA58: 246.9327173 | AB58: 36.67851291 | AC58: 131.4254489 | AD58: 7.535191636 | AE58: 32.35277505 | AF58: -0.1419797929 | AG58: 24.68073994 | AH58: -53.91406907 | AI58: 9.512448302 | AJ58: 59.42426736 | AK58: 3.021645692 | AL58: 2.724668538 | AM58: 1.988459921 | AN58: -2.669543475 | AO58: -1.893494387 | AP58: 25.98277075 | AQ58: 0 | AR58: 3.509185377 | AS58: -1.381662925 | AT58: 0.0002 | AU58: -0.4605543082 | AV58: 10.00557115 | AW58: 4.707119843 | AX58: -2.952480157 | AY58: =SUM(AA58:AX58) -> 537.0679386
B59: Edinburgh Northeast | C59: =C32-C5 -> 0.03842100452 | D59: 0.04842147433 | E59: 0.005048158549 | F59: -0.01202138166 | G59: -0.01660306752 | H59: -0.03207403165 | I59: -0.0006154157397 | J59: -0.01246266127 | K59: 0.0008765973159 | L59: -0.0124959677 | M59: -0.0007629870604 | N59: 0.002454446261 | O59: -0.0004032627695 | P59: -0.002607346834 | Q59: -0.0009739923895 | R59: 0.001499329045 | S59: 0.0006929305439 | T59: -0.001652549205 | U59: -0.000198478185 | V59: -6.086056844e-05 | W59: -6.086056844e-05 | X59: -0.001923094878 | Y59: -0.001280771201 | Z59: -0.001217211369 | AA59: 147.4015728 | AB59: 184.6234366 | AC59: 19.51501697 | AD59: -45.59620247 | AE59: -62.95895732 | AF59: -121.774226 | AG59: -2.128166479 | AH59: -47.39393338 | AI59: 3.344895962 | AJ59: -47.48813826 | AK59: -2.900240424 | AL59: 9.346183407 | AM59: -1.532970212 | AN59: -9.905149139 | AO59: -3.703646381 | AP59: 5.735541505 | AQ59: 2.637352979 | AR59: -6.278468292 | AS59: -0.753417233 | AT59: -0.2314470212 | AU59: -0.2314470212 | AV59: -7.309186165 | AW59: -4.866568932 | AX59: -4.628940424 | AY59: 2.922895001
B60: Edinburgh East | C60: =C33-C6 -> 0.009486588132 | D60: -0.01809528642 | E60: 0.06218402151 | F60: -0.01737287456 | G60: 0.01982196858 | H60: -0.009910123947 | I60: -0.01565195854 | J60: -0.01009893144 | K60: 0.003031737527 | L60: -0.01780206229 | M60: -0.0007990390606 | N60: 0.0004294868356 | O60: -0.0001260038539 | P60: 0.003077148367 | Q60: -0.0005701083007 | R60: -0.00393685299 | S60: -6.542002723e-05 | T60: -0.002881482633 | U60: 0.0005407650371 | V60: 0 | W60: 0.000742356986 | X60: -0.001056289556 | Y60: -0.0001137290205 | Z60: -0.0008339103444 | AA60: 109.7595696 | AB60: 3.537877592 | AC60: 150.6836409 | AD60: -8.813795736 | AE60: 55.45589409 | AF60: 0.644058113 | AG60: -15.30394587 | AH60: -16.67096004 | AI60: 6.620136205 | AJ60: -24.25166311 | AK60: -1.313726489 | AL60: 1.006644592 | AM60: -0.05905540787 | AN60: 7.109154308 | AO60: -0.8745264894 | AP60: -2.583867094 | AQ60: -0.08897108157 | AR60: -3.628196242 | AS60: 1.293202429 | AT60: 0 | AU60: 1.4242 | AV60: -1.149605958 | AW60: 0.2202470211 | AX60: -1.380626489 | AY60: 261.6356848
B61: Edinburgh Southeast | C61: =C34-C7 -> 0.0126280522 | D61: -0.02219766986 | E61: 0.01228882637 | F61: 0.07150963248 | G61: -0.01583613621 | H61: -0.006718753282 | I61: -0.02815621958 | J61: -0.004028305939 | K61: -0.001462162986 | L61: -0.008997042185 | M61: 4.035864991e-05 | N61: 0.001438271494 | O61: 0.002508053583 | P61: 0.0003654786176 | Q61: 1.612367631e-05 | R61: -0.01683384624 | S61: 0.0002966369719 | T61: 0.002031652319 | U61: 0.00118071171 | V61: 0 | W61: 0 | X61: -0.0008256617624 | Y61: 0.001157108023 | Z61: -0.0004051080502 | AA61: -29.84588018 | AB61: -35.76566332 | AC61: -4.880434021 | AD61: 59.03829278 | AE61: -26.19498041 | AF61: -13.47881702 | AG61: -35.15071702 | AH61: -4.647548776 | AI61: -1.669882925 | AJ61: -10.38960975 | AK61: 0.0408 | AL61: 1.454 | AM61: 2.511514634 | AN61: -0.03795121655 | AO61: 0.0163 | AP61: -20.82857314 | AQ61: 0.2759146343 | AR61: 1.262982933 | AS61: 1.097758537 | AT61: 0 | AU61: 0 | AV61: -1.074353657 | AW61: 1.121829269 | AX61: -0.4574707314 | AY61: -117.6024894
B62: Edinburgh Southwest Inner | C62: =C35-C8 -> 0.05587233924 | D62: -0.009843594258 | E62: 0.006009226135 | F62: -0.0169158571 | G62: 0.01596259206 | H62: -0.02240615907 | I62: 0.001208077586 | J62: -0.0441699497 | K62: 0.01010611406 | L62: 0.001040486228 | M62: 0.0007241724683 | N62: 0.0002211836231 | O62: -0.0004678554682 | P62: -0.005505767701 | Q62: -0.0007301047069 | R62: 0.003035758638 | S62: 0.0007649650019 | T62: 0.0004474338909 | U62: 0.0003446145997 | V62: 0 | W62: -7.179266279e-05 | X62: 0.003126120901 | Y62: 0.0016756326 | Z62: -0.0004276363689 | AA62: 12.61001764 | AB62: -68.57838522 | AC62: -13.20976689 | AD62: -66.95328117 | AE62: 1.60312449 | AF62: -113.9226116 | AG62: -17.83696318 | AH62: -141.7695257 | AI62: 27.73747128 | AJ62: -0.8625701016 | AK62: 1.877679561 | AL62: 0.5138530405 | AM62: -1.567430659 | AN62: -18.25543725 | AO62: -2.417277618 | AP62: 5.233654476 | AQ62: 2.10282652 | AR62: -0.6917085305 | AS62: 0.8345163007 | AT62: 0 | AU62: -0.2300367399 | AV62: 7.992797804 | AW62: 3.846124324 | AX62: -1.371420439 | AY62: -383.3143496
B63: Edinburgh West | C63: =C36-C9 -> 0.06114206853 | D63: -0.02742844265 | E63: -0.006810506854 | F63: -0.01446062871 | G63: -0.01341804156 | H63: 0.03422578487 | I63: -0.02137398736 | J63: -0.01012327134 | K63: 0.005335445835 | L63: -0.0002575743927 | M63: -0.0003127932437 | N63: 0 | O63: -0.0001335143624 | P63: -0.008538756781 | Q63: 0.0007111173162 | R63: -0.0006437421147 | S63: 0 | T63: 0.0001815550824 | U63: 0 | V63: 0 | W63: 0 | X63: 0.0006013023795 | Y63: 0.001303985353 | Z63: 0 | AA63: 62.92681923 | AB63: -16.77315772 | AC63: -2.782054516 | AD63: -10.04425181 | AE63: -7.577079959 | AF63: 30.73089122 | AG63: -13.08430599 | AH63: -7.224775907 | AI63: 4.219549705 | AJ63: 0.02849957796 | AK63: -0.2269250211 | AL63: 0 | AM63: -0.0904250211 | AN63: -6.164350633 | AO63: 0.5751249367 | AP63: -0.3216753165 | AQ63: 0 | AR63: 0.1719249367 | AS63: 0 | AT63: 0 | AU63: 0 | AV63: 0.5139748945 | AW63: 1.026524937 | AX63: 0 | AY63: 35.90430754
B64: Edinburgh Northwest Inner | C64: =C37-C10 -> -0.007782404159 | D64: -0.007688709782 | E64: 0.001671427886 | F64: -0.01314572417 | G64: -0.008806306414 | H64: -0.01433282602 | I64: 0.06398708639 | J64: -0.008299564998 | K64: -0.002628475405 | L64: 0.006402012213 | M64: 0.003335198147 | N64: -0.000120875136 | O64: -0.0005970794206 | P64: -0.005585082308 | Q64: -0.0004151275333 | R64: -0.002807774691 | S64: -0.000120875136 | T64: -0.001626800037 | U64: -0.0004835005439 | V64: 0 | W64: -0.000120875136 | X64: 0.0002253963771 | Y64: -0.0007194264941 | Z64: -0.0003396936265 | AA64: -97.30733977 | AB64: -41.44109949 | AC64: -11.9262597 | AD64: -28.18638405 | AE64: -26.9880595 | AF64: -45.20736618 | AG64: 87.35311223 | AH64: -15.76165702 | AI64: -5.413689724 | AJ64: 9.176358496 | AK64: 5.644507757 | AL64: -0.2290922431 | AM64: -1.133061216 | AN64: -10.74608888 | AO64: -0.8001689724 | AP64: -5.907727669 | AQ64: -0.2290922431 | AR64: -3.238044862 | AS64: -0.9163689724 | AT64: 0 | AU64: -0.2290922431 | AV64: 0.004424110223 | AW64: -1.624968133 | AX64: -0.6719689724 | AY64: -195.7791273
B65: Edinburgh Southwest Outer | C65: =C38-C11 -> -0.006166848306 | D65: -0.04599213383 | E65: -0.01337978013 | F65: 0.01175346012 | G65: -0.07466047264 | H65: 0.1021172686 | I65: -0.02291409192 | J65: 0.04222657471 | K65: 0.001034009539 | L65: -0.004372779902 | M65: 0 | N65: 0.0007306767761 | O65: -0.001386181002 | P65: 0.001543660571 | Q65: 0.0003207111316 | R65: 0.004728780363 | S65: 0 | T65: 0.002266427787 | U65: 0 | V65: 0 | W65: 0 | X65: 0.002231633654 | Y65: -0.0001963916576 | Z65: 0.0001154761779 | AA65: -54.95515126 | AB65: -21.12060619 | AC65: -9.150116724 | AD65: 0.8785986146 | AE65: -25.81217892 | AF65: 13.98332034 | AG65: -9.130041217 | AH65: 3.787958783 | AI65: 0.1286209797 | AJ65: -1.631490203 | AK65: 0 | AL65: 0.1449 | AM65: -0.4277580406 | AN65: -0.1524741217 | AO65: 0.0636 | AP65: 0.7084629391 | AQ65: 0 | AR65: 0.3730209797 | AS65: 0 | AT65: 0 | AU65: 0 | AV65: 0.3661209797 | AW65: -0.1153790203 | AX65: 0.0229 | AY65: -102.0376921
B66: Edinburgh Northwest Outer | C66: =C39-C12 -> 0.0543990786 | D66: -0.0127966163 | E66: -0.01835052135 | F66: -0.0255703389 | G66: -0.00334177852 | H66: 0.04368734214 | I66: -0.07300643449 | J66: 0.000220857903 | K66: 0.03417492452 | L66: 0.004331114087 | M66: 0 | N66: 0 | O66: 0.001726660559 | P66: -0.001240733071 | Q66: -0.001352517157 | R66: -0.000798084597 | S66: 0 | T66: 3.790908643e-06 | U66: 0 | V66: 0 | W66: 0 | X66: -0.001902270971 | Y66: -0.0001844733763 | Z66: 0 | AA66: 21.07350625 | AB66: -2.780932458 | AC66: -4.54488196 | AD66: -7.123886261 | AE66: -0.5842336123 | AF66: 14.29014767 | AG66: -20.10846822 | AH66: 0.09994105932 | AI66: 10.31983692 | AJ66: 1.319496854 | AK66: 0 | AL66: 0 | AM66: 0.5099852648 | AN66: -0.2434915572 | AO66: -0.3745294703 | AP66: -0.2226147352 | AQ66: 0 | AR66: 0.0011 | AS66: 0 | AT66: 0 | AU66: 0 | AV66: -0.4175210276 | AW66: 0.01818211864 | AX66: 0 | AY66: 11.23163683
B67: East Lothian West | C67: =C40-C13 -> 0.1005324855 | D67: -0.0417323614 | E67: -0.04368484324 | F67: -0.002193378074 | G67: -0.0190762377 | H67: -0.01607451778 | I67: -0.008551680697 | J67: -0.003066289 | K67: 0.0001151891251 | L67: 0.03670121771 | M67: -0.003802915495 | N67: -0.0006004249379 | O67: 0.0003618076094 | P67: -0.001426847112 | Q67: -0.0001707358716 | R67: 0.003674489259 | S67: 0.0002787071306 | T67: -0.0009865095499 | U67: 9.722756027e-05 | V67: 0.000210327312 | W67: 0 | X67: -0.00117147934 | Y67: 0.0007194720705 | Z67: -0.0001527030677 | AA67: 75.82075755 | AB67: -63.40390796 | AC67: -70.35510892 | AD67: -5.520466687 | AE67: -27.23717133 | AF67: -23.18485558 | AG67: -13.85205465 | AH67: -4.130015744 | AI67: 0.03857824004 | AJ67: 25.0379795 | AK67: -6.076826399 | AL67: -3.043364831 | AM67: 0.395371296 | AN67: -1.897079168 | AO67: -0.225464352 | AP67: 2.160928225 | AQ67: 0.295371296 | AR67: -1.407207872 | AS67: 0.117 | AT67: 0.2531 | AU67: 0 | AV67: -1.589779168 | AW67: 0.825771296 | AX67: -0.203764352 | AY67: -117.1822096
B68: East Lothian East | C68: =C41-C14 -> 0.08272988436 | D68: 0.00637956143 | E68: 0.01553241934 | F68: 0.00308464182 | G68: 0.011972741 | H68: -0.004797118614 | I68: -0.004818012027 | J68: -0.005343276018 | K68: 0 | L68: -0.02482013491 | M68: -0.04176307385 | N68: -0.02379011724 | O68: -0.000849617672 | P68: -0.001667331417 | Q68: 0 | R68: -0.008220204488 | S68: 0 | T68: -0.001699235344 | U68: -0.000849617672 | V68: -0.0004072165494 | W68: 0 | X68: -0.001699235344 | Y68: 0.001024943199 | Z68: 0 | AA68: 107.6733739 | AB68: 21.27284912 | AC68: 20.67196211 | AD68: 4.152264464 | AE68: 9.540087015 | AF68: 4.613150417 | AG68: 3.926449354 | AH68: -1.311978512 | AI68: 0 | AJ68: -3.317208733 | AK68: -0.9964938514 | AL68: -3.423649583 | AM68: -0.2239397874 | AN68: -0.4343795748 | AO68: 0 | AP68: -1.851477449 | AQ68: 0 | AR68: -0.4478795748 | AS68: -0.2239397874 | AT68: -0.03673978741 | AU68: 0 | AV68: -0.4478795748 | AW68: 0.4337 | AX68: 0 | AY68: 159.5682702
B69: East Lothian South | C69: =C42-C15 -> -0.1125636149 | D69: 0.01995408518 | E69: 0.04071864443 | F69: 0.03825735092 | G69: -0.01818399064 | H69: -0.01287487638 | I69: -0.02880915131 | J69: -0.005780346821 | K69: 0 | L69: -0.01288962297 | M69: 0.01940743916 | N69: 0.05344263089 | O69: 0 | P69: -0.005413299661 | Q69: 0 | R69: 0.0288882199 | S69: -0.001926782274 | T69: -0.001926782274 | U69: -0.001926782274 | V69: 0.001626878997 | W69: 0 | X69: 0 | Y69: 0 | Z69: 0 | AA69: -25.0498969 | AB69: -2.292199225 | AC69: -0.3109908031 | AD69: 2.891091578 | AE69: -2.435879477 | AF69: -2.264687899 | AG69: -3.446533688 | AH69: -0.6774813165 | AI69: 0 | AJ69: -4.736390803 | AK69: -0.2674589543 | AL69: 2.809249468 | AM69: 0 | AN69: -0.6471813165 | AO69: 0 | AP69: 2.317972894 | AQ69: -0.2258271055 | AR69: -0.2258271055 | AS69: -0.2258271055 | AT69: 0.1343 | AU69: 0 | AV69: 0 | AW69: 0 | AX69: 0 | AY69: -34.65356776
B70: West Lothian North | C70: =C43-C16 -> -0.03883196401 | D70: 0.01296691626 | E70: -0.02480857151 | F70: -0.008129876193 | G70: -0.01394876979 | H70: -0.06003883838 | I70: 0.01066340331 | J70: -0.004487595599 | K70: 0.003603688396 | L70: 0.0005383478606 | M70: 3.031079246e-05 | N70: 2.484491185e-05 | O70: 0.03849784568 | P70: 0.03339680451 | Q70: 0.05101250926 | R70: 0.001242022006 | S70: 5.714329725e-06 | T70: -0.0006302243098 | U70: -0.0006153173627 | V70: 2.931699598e-05 | W70: 8.248510734e-05 | X70: -0.0004709684249 | Y70: -0.0002913397122 | Z70: 0.000159255885 | AA70: 25.86756869 | AB70: 12.36730894 | AC70: -4.418660298 | AD70: -2.32337846 | AE70: -3.779851689 | AF70: -14.92976368 | AG70: 7.20185939 | AH70: -1.363436615 | AI70: 3.474732619 | AJ70: 0.5329738467 | AK70: 0.0122 | AL70: 0.01 | AM70: 21.12523447 | AN70: 21.22285663 | AO70: 25.15021816 | AP70: 0.689684308 | AQ70: 0.0023 | AR70: -0.1904052307 | AS70: -0.1844052307 | AT70: 0.0118 | AU70: 0.0332 | AV70: -0.1263052307 | AW70: -0.05400523066 | AX70: 0.0641 | AY70: 90.39582538
B71: West Lothian East | C71: =C44-C17 -> 0.03147904239 | D71: 0.01005796042 | E71: -0.007337164493 | F71: -0.007364260294 | G71: -0.01709275617 | H71: -0.05652704566 | I71: -0.004683438716 | J71: -0.004974076702 | K71: 0.007457419151 | L71: -0.0008481802015 | M71: -0.0001814416564 | N71: 1.475492817e-05 | O71: 0.00897013665 | P71: 0.04282496326 | Q71: -0.000142700625 | R71: -0.0003738877035 | S71: -0.0001920812644 | T71: 0.0002281493315 | U71: -0.0001435004125 | V71: 1.706352237e-05 | W71: 5.068869882e-05 | X71: -0.0008685644224 | Y71: -0.0002543793852 | Z71: -0.000116700645 | AA71: -9.77808236 | AB71: 1.001271049 | AC71: -12.26213614 | AD71: -8.609499791 | AE71: -21.51108187 | AF71: -67.52150468 | AG71: -8.428634163 | AH71: -7.36253656 | AI71: 5.991004585 | AJ71: -1.481349895 | AK71: -0.2084326041 | AL71: 0.0147 | AM71: 8.328082709 | AN71: -9.430293601 | AO71: -7.944094368 | AP71: -0.6214934373 | AQ71: -0.2190326041 | AR71: 0.2273 | AS71: -0.1706326041 | AT71: 0.017 | AU71: 0.0505 | AV71: -1.003663021 | AW71: -0.3087652083 | AX71: -0.1439326041 | AY71: -141.3753072
B72: West Lothian West | C72: =C45-C18 -> 0.04814674113 | D72: 0.003044264254 | E72: -0.001606551775 | F72: -0.006440555236 | G72: -0.01095294628 | H72: -0.04688158659 | I72: -0.00843679483 | J72: -1.324717472e-05 | K72: 0.01669783008 | L72: 0.002811783528 | M72: -0.0001444571328 | N72: 0.0001610214507 | O72: 0.02899103635 | P72: -0.05219881684 | Q72: 0.02144146377 | R72: 0.0003003497469 | S72: 4.284836914e-05 | T72: 0.0001621127464 | U72: 0.0005743721864 | V72: 0.0001914573955 | W72: 0.0005662105923 | X72: 0.001286981373 | Y72: 0.001538361555 | Z72: 0.000718121346 | AA72: 13.83593245 | AB72: -1.286935773 | AC72: -2.972543726 | AD72: -4.288782568 | AE72: -7.610559325 | AF72: -32.86788714 | AG72: -6.130759325 | AH72: -0.127067278 | AI72: 9.629492355 | AJ72: 1.558246178 | AK72: -0.1088134556 | AL72: 0.0947 | AM72: 16.52540398 | AN72: -56.89227426 | AO72: -2.943473055 | AP72: 0.1527865444 | AQ72: 0.0252 | AR72: 0.07148654439 | AS72: 0.3378 | AT72: 0.1126 | AU72: 0.333 | AV72: 0.7569 | AW72: 0.8808865444 | AX72: 0.3984865444 | AY72: -70.51617477
B73: Midlothian North | C73: =C46-C19 -> 0.1500580271 | D73: -0.01015146557 | E73: -0.02216245792 | F73: -0.07986397556 | G73: -0.02438542239 | H73: -0.02303074526 | I73: -0.004910783189 | J73: -0.001353902888 | K73: 0.0003640691883 | L73: 0.001486524747 | M73: 1.533817072e-06 | N73: 0.001563379228 | O73: 1.398677783e-05 | P73: 0.0002190863033 | Q73: 0.0002576402608 | R73: 0.02104107683 | S73: -0.004014800627 | T73: -0.0058496123 | U73: 2.750926162e-05 | V73: 0 | W73: 9.324518555e-06 | X73: 0.0002851171504 | Y73: 0.0003958905206 | Z73: 0 | AA73: 152.4017729 | AB73: -11.90254722 | AC73: -25.37169775 | AD73: -85.99550999 | AE73: -26.29742532 | AF73: -24.71322324 | AG73: -5.692675631 | AH73: -1.459710893 | AI73: 0.3726061202 | AJ73: 1.338370017 | AK73: -0.01175850645 | AL73: 1.6431 | AM73: 0.0147 | AN73: 0.1934891073 | AO73: 0.2674353734 | AP73: 19.45662184 | AQ73: -4.329832678 | AR73: -6.482162661 | AS73: 0.01554149355 | AT73: 0 | AU73: 0.0098 | AV73: 0.2929707468 | AW73: 0.4127353734 | AX73: 0 | AY73: -15.83740089
B74: Midlothian East | C74: =C47-C20 -> 0.1051106366 | D74: -0.01151803943 | E74: 0.01078040885 | F74: -0.06019892775 | G74: 0.02468929082 | H74: -0.01380759169 | I74: -0.0318550856 | J74: 0 | K74: 0.003472620552 | L74: -0.005668978924 | M74: 0.00229596052 | N74: 4.736109255e-06 | O74: 0 | P74: -0.001160330784 | Q74: 0 | R74: -0.03853407794 | S74: 0.006536644713 | T74: 0.003037472687 | U74: 0.002619068418 | V74: 0.0041961928 | W74: 0 | X74: 0 | Y74: 0 | Z74: 0 | AA74: 19.81765192 | AB74: -2.228924008 | AC74: 1.998006119 | AD74: -11.47972401 | AE74: 4.676045192 | AF74: -2.632714391 | AG74: -6.070091796 | AH74: 0 | AI74: 0.6599 | AJ74: -1.081966443 | AK74: 0.4363 | AL74: 0.0009 | AM74: 0 | AN74: -0.2210184936 | AO74: 0 | AP74: -7.424306255 | AQ74: 1.232767115 | AR74: 0.5756445192 | AS74: 0.4977 | AT74: 0.7974 | AU74: 0 | AV74: 0 | AW74: 0 | AX74: 0 | AY74: -0.4464305354
B75: Midlothian South | C75: =C48-C21 -> 0.05854535548 | D75: 0.007315255691 | E75: 0.05401768522 | F75: -0.01337641982 | G75: -0.01794300337 | H75: -0.0221335341 | I75: -0.03070197163 | J75: 0.0005505687041 | K75: 0.0002469413792 | L75: -0.005905965382 | M75: 0.0001618422575 | N75: 0 | O75: -0.0005783689994 | P75: -0.0005783689994 | Q75: 0 | R75: -0.02165698446 | S75: -0.0002202546727 | T75: -0.002486300383 | U75: -0.003812070257 | V75: 0.0002907003592 | W75: 0 | X75: 0 | Y75: -0.001735106998 | Z75: 0 | AA75: 49.81580027 | AB75: 10.73564268 | AC75: 32.74598046 | AD75: -1.529707102 | AE75: -4.301011103 | AF75: -8.56059133 | AG75: -10.7979151 | AH75: 0.288966889 | AI75: 0.1123 | AJ75: -2.106996665 | AK75: 0.0736 | AL75: 0 | AM75: -0.224433111 | AN75: -0.224433111 | AO75: 0 | AP75: 0.1455242426 | AQ75: 0.0156006669 | AR75: 2.458020674 | AS75: -1.386297999 | AT75: 0.1322 | AU75: 0 | AV75: 0 | AW75: -0.6732993331 | AX75: 0 | AY75: 66.71895102
B76: Scottish Borders West | C76: =C49-C22 -> 0.0008832065518 | D76: -0.009588078641 | E76: 0.03511320058 | F76: 0.01529386646 | G76: -0.002829247676 | H76: -0.01492644388 | I76: -0.01275681506 | J76: -0.007934263188 | K76: 0 | L76: -0.007614213198 | M76: 0 | N76: 0 | O76: 0 | P76: 0.00383730975 | Q76: -0.001692047377 | R76: 0.002983580076 | S76: -0.0005471007446 | T76: -0.0119489449 | U76: -0.09244090757 | V76: 0.00693421836 | W76: 0.09484996145 | X76: 0 | Y76: 0.003228742691 | Z76: -0.0008460236887 | AA76: 3.225595842 | AB76: -1.970008128 | AC76: 11.2344862 | AD76: 5.004514556 | AE76: -0.212542533 | AF76: -3.949079773 | AG76: -3.229785444 | AH76: -2.123114178 | AI76: 0 | AJ76: -2.04976276 | AK76: 0 | AL76: 0 | AM76: 0 | AN76: 1.229442911 | AO76: -0.4555028355 | AP76: 1.267223062 | AQ76: -0.1194028355 | AR76: -3.013234026 | AS76: -12.69584385 | AT76: 2.138542911 | AU76: 29.3470465 | AV76: 0 | AW76: 0.9478 | AX76: -0.2277514178 | AY76: 24.3486242
B77: Scottish Borders East | C77: =C50-C23 -> -0.0484854402 | D77: 0.001394056541 | E77: -0.01078049921 | F77: 0.01320998087 | G77: -0.03765690377 | H77: -0.01386833511 | I77: 0.005281636626 | J77: 0 | K77: 0.008025124329 | L77: -0.003429284026 | M77: 0.03854316924 | N77: -0.004184100418 | O77: 0 | P77: 0 | Q77: -0.004184100418 | R77: -0.004184100418 | S77: 0 | T77: 0.001929778216 | U77: -0.1181852586 | V77: 0.1380981809 | W77: 0.05102839672 | X77: 0 | Y77: -0.01255230126 | Z77: 0 | AA77: -3.322019028 | AB77: -0.08005018618 | AC77: -0.7228638056 | AD77: 0.7128 | AE77: -2.158977425 | AF77: -0.8330182834 | AG77: 0.1438361944 | AH77: 0 | AI77: 0.4189136194 | AJ77: -0.2132727611 | AK77: 2.051527239 | AL77: -0.2398863806 | AM77: 0 | AN77: 0 | AO77: -0.2398863806 | AP77: -0.2398863806 | AQ77: 0 | AR77: 0.09001361944 | AS77: -7.012387125 | AT77: 6.407107838 | AU77: 2.584063433 | AV77: 0 | AW77: -0.7196591417 | AX77: 0 | AY77: -3.373644954
B78: Scottish Borders South | C78: =C51-C24 -> 0.01133062611 | D78: 0.0103311018 | E78: 0.01350990674 | F78: -0.001060705211 | G78: -0.008212831313 | H78: -0.005940594059 | I78: -0.00396039604 | J78: -0.00198019802 | K78: 0 | L78: 0.006941688334 | M78: 0 | N78: -0.00198019802 | O78: 0 | P78: -0.00396039604 | Q78: 0 | R78: 0.02252484337 | S78: 0 | T78: 0 | U78: -0.2190595519 | V78: 0.0304364764 | W78: 0.1510802279 | X78: 0 | Y78: 0 | Z78: 0 | AA78: 0.8224773343 | AB78: 0.9879823161 | AC78: 1.288743088 | AD78: -0.1984784559 | AE78: -1.011817684 | AF78: -0.703708842 | AG78: -0.469139228 | AH78: -0.234569614 | AI78: 0 | AJ78: 0.7486 | AK78: 0 | AL78: -0.234569614 | AM78: 0 | AN78: -0.469139228 | AO78: 0 | AP78: 2.387060772 | AQ78: 0 | AR78: 0 | AS78: -28.79522504 | AT78: 3.240260772 | AU78: 12.02506836 | AV78: 0 | AW78: 0 | AX78: 0 | AY78: -10.61645506
B79: Fife West | C79: =C52-C25 -> 0.02597110007 | D79: -0.007049765756 | E79: -0.007900740936 | F79: -0.002957230647 | G79: -0.0004253051123 | H79: 0.02146088638 | I79: -0.00244543286 | J79: 0.00036392491 | K79: -0.006503478032 | L79: 0.003753027821 | M79: 5.430169597e-06 | N79: 6.824402331e-06 | O79: 8.064535658e-05 | P79: -0.0002559216114 | Q79: -0.0003678822845 | R79: -0.0007329677753 | S79: 9.539487129e-07 | T79: 4.402840214e-06 | U79: 1.467613405e-05 | V79: 4.916504905e-06 | W79: 1.423585002e-05 | X79: -0.009357652458 | Y79: -0.009416387314 | Z79: -0.004268259602 | AA79: -0.7194110202 | AB79: -15.69930968 | AC79: -14.79293336 | AD79: -4.630376027 | AE79: -2.115879833 | AF79: 22.65933359 | AG79: -5.557505276 | AH79: 0.248721636 | AI79: -9.886853222 | AJ79: 4.902561402 | AK79: 0.0074 | AL79: 0.0093 | AM79: 0.1099 | AN79: -0.595978364 | AO79: -0.5543096494 | AP79: -1.087149416 | AQ79: 0.0013 | AR79: 0.006 | AS79: 0.02 | AT79: 0.0067 | AU79: 0.0194 | AV79: -61.61336665 | AW79: -21.92638982 | AX79: -6.593574858 | AY79: -117.7824205
B80: Fife Central | C80: =C53-C26 -> 0.002556281443 | D80: -0.001783916591 | E80: 0.01507732481 | F80: -0.003007628443 | G80: -0.006345914485 | H80: -0.004888828661 | I80: -0.004564354403 | J80: -0.002306183731 | K80: 0.0005906187739 | L80: -0.002314097093 | M80: -0.0001542860215 | N80: 1.270032654e-05 | O80: 9.532000398e-05 | P80: -0.0004929781276 | Q80: -8.044848475e-05 | R80: 0.0009139789313 | S80: 3.039971778e-06 | T80: 1.398387018e-05 | U80: -0.0001049520538 | V80: 1.526741382e-05 | W80: 4.377559361e-05 | X80: -0.03500171467 | Y80: 0.05463341891 | Z80: -0.01291040729 | AA80: 29.55093534 | AB80: 2.075144014 | AC80: 25.47871094 | AD80: -3.795795421 | AE80: -7.497653438 | AF80: -1.354181178 | AG80: -5.03061018 | AH80: -3.049164123 | AI80: 1.360447837 | AJ80: -3.085186514 | AK80: -0.2040776082 | AL80: 0.0188 | AM80: 0.1411 | AN80: -0.6325104327 | AO80: -0.09477760817 | AP80: 1.425867175 | AQ80: 0.0045 | AR80: 0.0207 | AS80: -0.08243282452 | AT80: 0.0226 | AU80: 0.0648 | AV80: -33.24059264 | AW80: 154.6486592 | AX80: -12.11015115 | AY80: 144.6351314
B81: Fife East | C81: =C54-C27 -> -0.04583992022 | D81: -0.0167503454 | E81: -0.004490517863 | F81: -0.002081580193 | G81: -0.004847076154 | H81: -0.01269501071 | I81: -0.006010099259 | J81: -0.001615948611 | K81: 0.0006381211711 | L81: -0.002554278416 | M81: 0 | N81: 0 | O81: -0.0008514261388 | P81: -0.0004237397292 | Q81: 1.973340174e-07 | R81: -0.0004257130694 | S81: 0 | T81: 0 | U81: 0 | V81: 0 | W81: 0 | X81: -0.009220340984 | Y81: 0.06871022532 | Z81: 0.03845745292 | AA81: -25.60146698 | AB81: -8.905686893 | AC81: -2.652239391 | AD81: -1.197366256 | AE81: -2.639513758 | AF81: -6.799727516 | AG81: -3.218701883 | AH81: -0.910506879 | AI81: 0.2826524982 | AJ81: -1.355471253 | AK81: 0 | AL81: 0 | AM81: -0.4518237509 | AN81: -0.2249118754 | AO81: 0.0001 | AP81: -0.2259118754 | AQ81: 0 | AR81: 0 | AS81: 0 | AT81: 0 | AU81: 0 | AV81: -6.016167559 | AW81: 30.06535417 | AX81: 5.939393782 | AY81: -23.91199542
B82: Total | AA82: =SUM(AA58:AA81) -> 832.9568216 | AB82: -20.94938828 | AC82: 214.6893078 | AD82: -216.0741326 | AE82: -155.2969287 | AF82: -397.9190428 | AG82: -61.36101726 | AH82: -305.7064632 | AI82: 67.25316136 | AJ82: 0.01627598059 | AK82: 0.8509069348 | AL82: 12.62043639 | AM82: 45.93885507 | AN82: -90.08874274 | AO82: 3.551626904 | AP82: 26.34941597 | AQ82: 1.380974663 | AR82: -16.83575481 | AS82: -49.61492194 | AT82: 13.00562471 | AU82: 44.73994798 | AV82: -94.05566097 | AW82: 168.8658993 | AX82: -24.31720127 | AY82: 1.391242677e-11

Sheet Sectors
B1: SRM12 Sector System for SESPlan Authorities
